Workbook

Sheet Vstupy
A1: Vstupné Parametre | F1: Výstupy
D3: 1 stupňová převodovka | I3: 2. stupňová převodovka | N3: 2. stupňová koaxiálni převodovka
A5: Maximálny výkon P [W] | B5: 90
A6: Výstupné otáčky nvystup [ min -1] | B6: 1000
A7: Maximálne otáčky elektromotoru nvstup [ min -1] | B7: 6000
A8: Normalizovaný modul prvního soukolí mn12 [mm] | B8: 1.5
A9: Normalizovaný modul druhého soukolí mn34 [mm] | B9: 2.5
A10: Celková osová vzdálenost a | B10: 255
A11: Osová vzdálenost prvního soukolí a12 | B11: 120
A12: úhel sklonu zubu β12 | B12: 12
A13: úhel sklonu zubu β34 | B13: 10
A14: poměrná šířka ozubení ψ12 | B14: 19
A15: poměrná šířka ozubení ψ34 | B15: 19
A16: provozní součinitel KH | B16: 2
D19: Min. počet zubů | I19: Min. počet zubů | N19: Min. počet zubů
A20: Realizovatelnost | D20: =IF(Výpočty!F3>17,"Splněno","Nesplněno ") -> Splněno | I20: =IF('Výpočty 2'!F5>17,"Splněno","Nesplněno ") -> Splněno | J20: =IF('Výpočty 2'!F7>17,"Splněno","Nesplněno ") -> Splněno | K20: =IF(('Výpočty 2'!G18)/2>'Výpočty 2'!E22,"Kolize hřídele a kola 2"," ") ->  | N20: =IF(' Výpočty 3'!F5>17,"Splněno","Nesplněno ") -> Splněno | O20: =IF(' Výpočty 3'!F7>17,"Splněno","Nesplněno ") -> Splněno
A21: Upravené výstupné otáčky nuvyst [min -1] | D21: =Výpočty!J8 -> 1010.526316 | I21: ='Výpočty 2'!K11 -> 986.6252687 | N21: =' Výpočty 3'!K11 -> 989.7574124
A22: Krouticí moment na vstup. hřídeli Mk1 [N.m] | D22: =Výpočty!E6/1000 -> 143.2394488 | I22: ='Výpočty 2'!E10/1000 -> 143.2394488 | N22: =' Výpočty 3'!E10/1000 -> 143.2394488
A23: Krouticí moment na předlohovém hřídeli Mk2 [N.m] | D23: - | I23: ='Výpočty 2'!E11/1000 -> 291.7590969 | N23: ='Výpočty 2'!E11/1000 -> 291.7590969
A24: Krouticí moment na výstup. hřídeli Mk3 [N.m] | D24: =Výpočty!E7/1000 -> 833.4745426 | I24: ='Výpočty 2'!E12/1000 -> 836.5921955 | N24: =' Výpočty 3'!E12/1000 -> 833.9447518
A25: Hlavné Rozmery | D25: Pastorek 1 | E25: Kolo 2 | F25: Pastorek 3 | G25: Kolo4 | I25: Pastorek 1 | J25: Kolo 2 | K25: Pastorek 3 | L25: Kolo4 | N25: Pastorek 1 | O25: Kolo 2 | P25: Pastorek 3 | Q25: Kolo4
A26: Šířka kola bw [mm] | D26: =Výpočty!D11 -> 29 | E26: =Výpočty!H11 -> 30 | F26: - | G26: - | I26: ='Výpočty 2'!E16 -> 29 | J26: ='Výpočty 2'!G16 -> 30 | K26: ='Výpočty 2'!I16 -> 48 | L26: ='Výpočty 2'!K16 -> 50 | N26: =' Výpočty 3'!E16 -> 29 | O26: =' Výpočty 3'!G16 -> 30 | P26: =' Výpočty 3'!I16 -> 48 | Q26: =' Výpočty 3'!K16 -> 50
A27: Průměr roztečnej kružnice d [mm] | D27: =Výpočty!D12 -> 73.60852283 | E27: =Výpočty!F12 -> 437.0506043 | F27: - | G27: - | I27: ='Výpočty 2'!E17 -> 78.20905551 | J27: ='Výpočty 2'!G17 -> 162.5521546 | K27: ='Výpočty 2'!I17 -> 68.5412963 | L27: ='Výpočty 2'!K17 -> 200.5467558 | N27: =' Výpočty 3'!E17 -> 78.20905551 | O27: =' Výpočty 3'!G17 -> 162.5521546 | P27: =' Výpočty 3'!I17 -> 60.92559671 | Q27: =' Výpočty 3'!K17 -> 177.6996571
A28: Hlavový průměr da [mm] | D28: =Výpočty!D20 -> 76.5216142 | E28: =Výpočty!F20 -> 440.0506043 | F28: - | G28: - | I28: ='Výpočty 2'!E18 -> 81.10937868 | J28: ='Výpočty 2'!G18 -> 165.5521546 | K28: ='Výpočty 2'!I18 -> 73.66358756 | L28: ='Výpočty 2'!K18 -> 205.5467558 | N28: =' Výpočty 3'!E18 -> 81.10937868 | O28: =' Výpočty 3'!G18 -> 165.5521546 | P28: =' Výpočty 3'!I18 -> 66.11148222 | Q28: =' Výpočty 3'!K18 -> 182.6996571
A29: Patní průměr df [mm] | D29: =Výpočty!D21 -> 69.7716142 | E29: =Výpočty!F21 -> 433.2136957 | F29: - | G29: - | I29: ='Výpočty 2'!E19 -> 74.35937868 | J29: ='Výpočty 2'!G19 -> 158.8021546 | K29: ='Výpočty 2'!I19 -> 62.41358756 | L29: ='Výpočty 2'!K19 -> 194.2967558 | N29: =' Výpočty 3'!E19 -> 74.35937868 | O29: =' Výpočty 3'!G19 -> 158.8021546 | P29: =' Výpočty 3'!I19 -> 54.86148222 | Q29: =' Výpočty 3'!K19 -> 171.4496571
A30: součinitel záběru profilu εα | D30: =Výpočty!D26 -> 1.939207725 | I30: ='Výpočty 2'!E32 -> 1.862165533 | K30: ='Výpočty 2'!I32 -> 1.482706899 | N30: =' Výpočty 3'!E32 -> 1.862165533 | P30: =' Výpočty 3'!I32 -> 1.399221112
A31: Celková délka převodovky x [mm] | D31: =Výpočty!D13+Výpočty!D20/2+Výpočty!F20/2 -> 513.6156728 | I31: ='Výpočty 2'!E21+'Výpočty 2'!E22+'Výpočty 2'!E18/2+'Výpočty 2'!K18/2 -> 398.2526984 | N31: =' Výpočty 3'!E21+' Výpočty 3'!G18/2+' Výpočty 3'!K18/2 -> 294.5065109
A32: Celková šířka převodovky y [mm] | D32: =Výpočty!D39+Výpočty!D40+Výpočty!D55/2+Výpočty!D56/2 -> 105 | I32: ='Výpočty 2'!E46+'Výpočty 2'!E47+'Výpočty 2'!E48+'Výpočty 2'!D58/2+'Výpočty 2'!D59/2 -> 171.5 | N32: =' Výpočty 3'!E46+' Výpočty 3'!E47+' Výpočty 3'!E48+' Výpočty 3'!D58/2+' Výpočty 3'!D59/2 -> 261
A33: Počty dilů | D33: vnějši ф | E33: délka l | F33: hmotnost | G33: cena [kč] | I33: vnějši ф | J33: délka l | K33: hmotnost | L33: cena [kč] | N33: vnějši ф | O33: délka l | P33: hmotnost | Q33: cena [kč]
A34: Vstupný hřídel | D34: =Výpočty!F35 -> 29 | E34: =Výpočty!D60 -> 163 | F34: =(PI()*(D34/2000)^2*(E34/1000)*7850) -> 0.845168181 | G34: =3254+F34*2.16*1000 -> 5079.563271 | I34: ='Výpočty 2'!G41 -> 29 | J34: =I32+'Výpočty 2'!D56/2+'Výpočty 2'!D57/2+2*'Výpočty 2'!G41+3 -> 255.5 | K34: =(PI()*(I34/2000)^2*(J34/1000)*7850) -> 1.324788161 | L34: =3254+K34*2.16*1000 -> 6115.542428 | N34: =' Výpočty 3'!G41 -> 29 | O34: =' Výpočty 3'!B46+' Výpočty 3'!B47+' Výpočty 3'!D56/2+' Výpočty 3'!D57/2+5+2*' Výpočty 3'!G41 -> 168 | P34: =(PI()*(N34/2000)^2*(O34/1000)*7850) -> 0.8710935853 | Q34: =3254+P34*2.16*1000 -> 5135.562144
A35: Předlohový hřídel | D35: - | E35: - | F35: - | G35: - | I35: ='Výpočty 2'!G42 -> 37 | J35: ='Výpočty 2'!E46+'Výpočty 2'!E47+'Výpočty 2'!E48+'Výpočty 2'!D58/2+'Výpočty 2'!D59/2+5 -> 176.5 | K35: =(PI()*(I35/2000)^2*(J35/1000)*7850) -> 1.489730454 | L35: =9057+K35*0.965*1000 -> 10494.58989 | N35: =' Výpočty 3'!G42 -> 37 | O35: =' Výpočty 3'!E46+' Výpočty 3'!E47+' Výpočty 3'!E48+' Výpočty 3'!D58/2+' Výpočty 3'!D59/2+5 -> 266 | P35: =(PI()*(N35/2000)^2*(O35/1000)*7850) -> 2.24514618 | Q35: =9057+P35*0.965*1000 -> 11223.56606
A36: Výstupný hřídel | D36: =Výpočty!F36 -> 53 | E36: =Výpočty!D47+Výpočty!D48+Výpočty!D57/2+Výpočty!D58/2+2*Výpočty!F36 -> 221 | F36: =(PI()*(D36/2000)^2*(E36/1000)*7850) -> 3.827397343 | G36: =6764+F36*0.262*1000 -> 7766.778104 | I36: ='Výpočty 2'!G43 -> 53 | J36: ='Výpočty 2'!H46+'Výpočty 2'!H47+'Výpočty 2'!D60/2+'Výpočty 2'!D61/2+'Výpočty 2'!G43*2 -> 274.5 | K36: =(PI()*(I36/2000)^2*(J36/1000)*7850) -> 4.753939233 | L36: =6764+K36*0.262*1000 -> 8009.532079 | N36: =' Výpočty 3'!G43 -> 53 | O36: =' Výpočty 3'!H46+' Výpočty 3'!H47+' Výpočty 3'!D60/2+' Výpočty 3'!D61/2+2*' Výpočty 3'!G43 -> 239 | P36: =(PI()*(N36/2000)^2*(O36/1000)*7850) -> 4.139131063 | Q36: =6764+P36*0.262*1000 -> 7848.452338
A37: Pastorek 1 (roztečný průměr, šířka, hmotnost) | D37: =D27 -> 73.60852283 | E37: =Výpočty!D11 -> 29 | F37: =Výpočty!G62 -> 0.8183871728 | G37: =3167+F37*1.886*1000 -> 4710.478208 | I37: =I27 -> 78.20905551 | J37: ='Výpočty 2'!E16 -> 29 | K37: =((((PI()*(I27/1000)^2)/4)*(I26/1000))-(((PI()*(I34/1000)^2)/4)*(I26/1000)))*7850 -> 0.9432656848 | L37: =3167+K37*1.886*1000 -> 4945.999082 | N37: =N27 -> 78.20905551 | O37: =' Výpočty 3'!E16 -> 29 | P37: =((((PI()*(N27/1000)^2)/4)*(N26/1000))-(((PI()*(N34/1000)^2)/4)*(N26/1000)))*7850 -> 0.9432656848 | Q37: =3167+P37*1.886*1000 -> 4945.999082
A38: Kolo 2 ( roztečný průměr, šířka, hmotnost) | D38: =E27 -> 437.0506043 | E38: =Výpočty!H11 -> 30 | F38: =((((PI()*(E27/1000)^2)/4)*(E26/1000))-(((PI()*(D36/1000)^2)/4)*(E26/1000)))*7850 -> 34.81049306 | G38: =7593+F38*0.23*1000 -> 15599.4134 | I38: =J27 -> 162.5521546 | J38: ='Výpočty 2'!G16 -> 30 | K38: =((((PI()*(J27/1000)^2)/4)*(J26/1000))-(((PI()*(I35/1000)^2)/4)*(J26/1000)))*7850 -> 4.634057135 | L38: =7593+K38*0.304*1000 -> 9001.753369 | N38: =O27 -> 162.5521546 | O38: =' Výpočty 3'!G16 -> 30 | P38: =((((PI()*(O27/1000)^2)/4)*(O26/1000))-(((PI()*(N35/1000)^2)/4)*(O26/1000)))*7850 -> 4.634057135 | Q38: =7593+P38*0.304*1000 -> 9001.753369
A39: Pastorek 3 (roztečný průměr, šířka, hmotnost) | D39: - | E39: - | F39: - | G39: - | I39: =K27 -> 68.5412963 | J39: ='Výpočty 2'!I16 -> 48 | K39: =((((PI()*(K27/1000)^2)/4)*(K26/1000))-(((PI()*(I35/1000)^2)/4)*(K26/1000)))*7850 -> 0.9851508532 | L39: =4782+K39*0.54*1000 -> 5313.981461 | N39: =P27 -> 60.92559671 | O39: =' Výpočty 3'!I16 -> 48 | P39: =((((PI()*(P27/1000)^2)/4)*(P26/1000))-(((PI()*(N35/1000)^2)/4)*(P26/1000)))*7850 -> 0.6933615911 | Q39: =4782+P39*0.54*1000 -> 5156.415259
A40: Kolo 4 (roztečný průměr, šířka, hmotnost) | D40: - | E40: - | F40: - | G40: - | I40: =L27 -> 200.5467558 | J40: ='Výpočty 2'!K16 -> 50 | K40: =((((PI()*(L27/1000)^2)/4)*(L26/1000))-(((PI()*(I36/1000)^2)/4)*(L26/1000)))*7850 -> 11.53233542 | L40: =7100+K40*0.39*1000 -> 11597.61081 | N40: =Q27 -> 177.6996571 | O40: =' Výpočty 3'!K16 -> 50 | P40: =((((PI()*(Q27/1000)^2)/4)*(Q26/1000))-(((PI()*(N36/1000)^2)/4)*(Q26/1000)))*7850 -> 8.868328066 | Q40: =7100+P40*0.39*1000 -> 10558.64795
A41: ložisko A | D41: ='Ložiská '!M6 -> NU406 | F41: ='Ložiská '!R6 -> 0.75 | G41: ='Ložiská '!N6 -> 3927 | I41: ='Ložiská '!T6 -> NU406 | K41: ='Ložiská '!Y6 -> 0.75 | L41: ='Ložiská '!U6 -> 3927 | N41: ='Ložiská '!AA6 -> NU406 | P41: ='Ložiská '!AF6 -> 0.75 | Q41: ='Ložiská '!AB6 -> 3927
A42: ložisko B | D42: ='Ložiská '!M7 -> 6406 | F42: ='Ložiská '!R7 -> 0.75 | G42: ='Ložiská '!N7 -> 808 | I42: ='Ložiská '!T7 -> 6406 | K42: ='Ložiská '!Y7 -> 0.75 | L42: ='Ložiská '!U7 -> 808 | N42: ='Ložiská '!AA7 -> 6406 | P42: ='Ložiská '!AF7 -> 0.75 | Q42: ='Ložiská '!AB7 -> 808
A43: ložisko C | D43: - | F43: - | I43: ='Ložiská '!T11 -> 6408 | K43: ='Ložiská '!Y11 -> 1.26 | L43: ='Ložiská '!U11 -> 1207 | N43: ='Ložiská '!AA11 -> 6408 | P43: ='Ložiská '!AF11 -> 1.26 | Q43: ='Ložiská '!AB11 -> 1207
A44: ložisko D | D44: - | F44: - | I44: ='Ložiská '!T12 -> NJ2308 | K44: ='Ložiská '!Y12 -> 0.95 | L44: ='Ložiská '!U12 -> 1759 | N44: ='Ložiská '!AA12 -> NJ2308 | P44: ='Ložiská '!AF12 -> 0.95 | Q44: ='Ložiská '!AB12 -> 1759
A45: ložisko E | D45: ='Ložiská '!M16 -> 6411 | F45: ='Ložiská '!R16 -> 2.4 | G45: ='Ložiská '!N16 -> 2061 | I45: ='Ložiská '!T16 -> NU211 | K45: ='Ložiská '!Y16 -> 1.45 | L45: ='Ložiská '!U16 -> 1471 | N45: ='Ložiská '!AA16 -> 6411 | P45: ='Ložiská '!AF16 -> 2.4 | Q45: ='Ložiská '!AB16 -> 2061
A46: ložisko F | D46: ='Ložiská '!M17 -> NU411 | F46: ='Ložiská '!R17 -> 2.5 | G46: ='Ložiská '!N17 -> 5549 | I46: ='Ložiská '!T17 -> 6411 | K46: ='Ložiská '!Y17 -> 2.4 | L46: ='Ložiská '!U17 -> 2061 | N46: ='Ložiská '!AA17 -> NU211 | P46: ='Ložiská '!AF17 -> 1.45 | Q46: ='Ložiská '!AB17 -> 1471
G47: =SUM(G34:G46) -> 45501.23299 | L47: =SUM(L34:L46) -> 66712.00912 | Q47: =SUM(Q34:Q46) -> 65103.3962
A48: Bezpečnosti | D48: 1. Soukolí | F48: 2. Soukolí | I48: 1. Soukolí | K48: 2. Soukolí | N48: 1. Soukolí | P48: 2. Soukolí
A49: Součinitel bezpečnosti v dotyku SH | D49: =Výpočty!E83 -> 2.012929628 | F49: - | I49: ='Výpočty 2'!E91 -> 2.047960525 | K49: ='Výpočty 2'!J91 -> 1.497002602 | N49: =' Výpočty 3'!E91 -> 2.047960525 | P49: =' Výpočty 3'!J91 -> 1.316437167 | W49: pod výstup - hlavné rozmery, realizovatelnost, váha, axiálna sila
A50: Součinitel Bezpečnosti v ohybe SF | D50: =Výpočty!M71 -> 1.787988874 | F50: - | I50: ='Výpočty 2'!N81 -> 2.503692896 | K50: ='Výpočty 2'!S81 -> 2.665523199 | N50: =' Výpočty 3'!N81 -> 2.696815213 | P50: =' Výpočty 3'!S81 -> 2.195009011
A51: Statická kontrola vstupního hřídele σred1 | D51: =Výpočty!C93 -> 70.99959969 | E51: =IF(D51>80,"Nutno zvětšit průměr hřídele 1"," ") ->  | I51: ='Výpočty 2'!C70 -> 65.30005477 | J51: =IF(I51>80,"Nutno zvětšit průměr hřídele1"," ") ->  | N51: =' Výpočty 3'!C70 -> 63.5607776 | O51: =IF(N51>80,"Nutno zvětšit průměr hřídele 1"," ") -> 
A52: Statická kontrola předlohového hřídele σred2 | D52: - | I52: ='Výpočty 2'!H70 -> 88.9652777 | J52: =IF(I52>80,"Nutno zvětšit průměr hřídele 2"," ") -> Nutno zvětšit průměr hřídele 2 | N52: =' Výpočty 3'!H70 -> 101.7369727 | O52: =IF(N52>80,"Nutno zvětšit průměr hřídele 2"," ") -> Nutno zvětšit průměr hřídele 2
A53: Statická kontrola výstupního hřídele σred3 | D53: =Výpočty!H93 -> 64.89142579 | E53: =IF(D53>80,"Nutno zvětšit průměr hřídele 3"," ") ->  | I53: ='Výpočty 2'!M70 -> 61.13792823 | J53: =IF(I53>80,"Nutno zvětšit průměr hřídele 3"," ") ->  | N53: =' Výpočty 3'!M70 -> 60.5503007 | O53: =IF(N53>80,"Nutno zvětšit průměr hřídele 3"," ") -> 

Sheet Materiály
A1: Materiály
A3: Ozubené kola | C3: σFlim | D3: σHlim
A4: 12051 | C4: 390 | D4: 1140
A5: 15241 | C5: 740 | D5: 1288
A6: 16526 | C6: 740 | D6: 1330

Sheet Ložiská
A1: Ložiska | L1: 1 stupňová převodovka | S1: 2 stupňová převodovka | Z1: 2 stupňová koaxiálna převodovka
A4: Válečkové ložisko SKF NU4 | L4: Vstupný hřídel | O4: průměr | P4: =Výpočty!F35 -> 29 | R4: mm | S4: Vstupný hřídel | V4: průměr | W4: ='Výpočty 2'!G41 -> 29 | Y4: mm | Z4: Vstupný hřídel | AC4: průměr | AD4: =' Výpočty 3'!G41 -> 29 | AF4: mm
A5: Označení ložiska | C5: Rozmery | F5: Únosnost | H5: cena [kč] | I5: m [kg] | M5: typ | N5: cena | O5: D | P5: B | Q5: C | R5: m | T5: typ | U5: cena | V5: D | W5: B | X5: C | Y5: m | AA5: typ | AB5: cena | AC5: D | AD5: B | AE5: C | AF5: m
C6: d | D6: D | E6: B | F6: C | G6: Co | L6: Ložisko A | M6: NU406 | N6: 3927 | O6: 90 | P6: 23 | Q6: 52000 | R6: 0.75 | S6: Ložisko A | T6: NU406 | U6: 3927 | V6: 90 | W6: 23 | X6: 52000 | Y6: 0.75 | Z6: Ložisko A | AA6: NU406 | AB6: 3927 | AC6: 90 | AD6: 23 | AE6: 52000 | AF6: 0.75
A7: NU406 | C7: 30 | D7: 90 | E7: 23 | F7: 52000 | G7: 31000 | H7: 3927 | I7: 0.75 | L7: Ložisko B | M7: 6406 | N7: 808 | O7: 90 | P7: 23 | Q7: 43600 | R7: 0.75 | S7: Ložisko B | T7: 6406 | U7: 808 | V7: 90 | W7: 23 | X7: 43600 | Y7: 0.75 | Z7: Ložisko B | AA7: 6406 | AB7: 808 | AC7: 90 | AD7: 23 | AE7: 43600 | AF7: 0.75
A8: NU407 | C8: 35 | D8: 100 | E8: 25 | F8: 64000 | G8: 40000 | H8: 4085 | I8: 1
A9: NU408 | C9: 40 | D9: 110 | E9: 27 | F9: 80000 | G9: 50000 | H9: 4678 | I9: 1.3 | S9: Predlohový hřídel | V9: průměr | W9: ='Výpočty 2'!G42 -> 37 | Y9: mm | Z9: Predlohový hřídel | AC9: průměr | AD9: =' Výpočty 3'!G42 -> 37 | AF9: mm
A10: NU409 | C10: 45 | D10: 120 | E10: 29 | F10: 90000 | G10: 57000 | H10: 4987 | I10: 1.65 | T10: typ | U10: cena | V10: D | W10: B | X10: C | Y10: m | AA10: typ | AB10: cena | AC10: D | AD10: B | AE10: C | AF10: m
A11: NU410 | C11: 50 | D11: 130 | E11: 31 | F11: 96500 | G11: 72000 | H11: 4990 | I11: 2 | S11: Ložisko C | T11: 6408 | U11: 1207 | V11: 110 | W11: 27 | X11: 6370 | Y11: 1.26 | Z11: Ložisko C | AA11: 6408 | AB11: 1207 | AC11: 110 | AD11: 27 | AE11: 6370 | AF11: 1.26
A12: NU411 | C12: 55 | D12: 140 | E12: 33 | F12: 120000 | G12: 78000 | H12: 5549 | I12: 2.5 | S12: Ložisko D | T12: NJ2308 | U12: 1759 | V12: 90 | W12: 33 | X12: 129000 | Y12: 0.95 | Z12: Ložisko D | AA12: NJ2308 | AB12: 1759 | AC12: 90 | AD12: 33 | AE12: 129000 | AF12: 0.95
A13: NU412 | C13: 60 | D13: 150 | E13: 35 | F13: 143000 | G13: 98000 | H13: 7698 | I13: 3
A14: NU413 | C14: 65 | D14: 160 | E14: 37 | F14: 156000 | G14: 108000 | H14: 8561 | I14: 3.6 | L14: Výstupný hřídel | O14: průměr | P14: =Výpočty!F36 -> 53 | R14: mm | S14: Výstupný hřídel | V14: průměr | W14: ='Výpočty 2'!G43 -> 53 | Y14: mm | Z14: Výstupný hřídel | AC14: průměr | AD14: =' Výpočty 3'!G43 -> 53 | AF14: mm
A15: NU414 | C15: 70 | D15: 170 | E15: 42 | F15: 193000 | G15: 134000 | H15: 8829 | I15: 5.25 | M15: typ | N15: cena | O15: D | P15: B | Q15: C | R15: m | T15: typ | U15: cena | V15: D | W15: B | X15: C | Y15: m | AA15: typ | AB15: cena | AC15: D | AD15: B | AE15: C | AF15: m
A16: NU415 | C16: 75 | D16: 180 | E16: 45 | F16: 224000 | G16: 156000 | H16: 9125 | I16: 6.25 | L16: Ložisko E | M16: 6411 | N16: 2061 | O16: 150 | P16: 33 | Q16: 103000 | R16: 2.4 | S16: Ložisko E | T16: NU211 | U16: 1471 | V16: 100 | W16: 21 | X16: 96500 | Y16: 1.45 | Z16: Ložisko E | AA16: 6411 | AB16: 2061 | AC16: 150 | AD16: 33 | AE16: 103000 | AF16: 2.4
A17: NU416 | C17: 80 | D17: 190 | E17: 48 | F17: 260000 | G17: 183000 | H17: 9598 | I17: 7.3 | L17: Ložisko F | M17: NU411 | N17: 5549 | O17: 140 | P17: 33 | Q17: 120000 | R17: 2.5 | S17: Ložisko F | T17: 6411 | U17: 2061 | V17: 150 | W17: 33 | X17: 103000 | Y17: 2.4 | Z17: Ložisko F | AA17: NU211 | AB17: 1471 | AC17: 100 | AD17: 21 | AE17: 96500 | AF17: 1.45
A18: NU417 | C18: 85 | D18: 210 | E18: 52 | F18: 310000 | G18: 228000 | H18: 10025 | I18: 8.7
A19: NU418 | C19: 90 | D19: 225 | E19: 54 | F19: 345000 | G19: 255000 | H19: 10397 | I19: 10.5
L20: Životnost ložisek | O20: A | Q20: B | S20: C | U20: D | W20: E | Y20: F
L21: 1 - stupňová | N21: FR | O21: =SQRT(Výpočty!D43*Výpočty!D43+Výpočty!D42*Výpočty!D42) -> 2233.083099 | P21: N | Q21: =SQRT(Výpočty!D44*Výpočty!D44+Výpočty!D45*Výpočty!D45) -> 1977.684796 | R21: N | S21: - | U21: - | W21: =SQRT(Výpočty!D51*Výpočty!D51+Výpočty!D50*Výpočty!D50) -> 9645.120692 | X21: N | Y21: =SQRT(Výpočty!D52*Výpočty!D52+Výpočty!D53*Výpočty!D53) -> 11039.89733 | Z21: N
A22: Válečkové ložisko SKF NJ23 | N22: FA | O22: =Výpočty!D41 -> 827.254333 | P22: N | Q22: 0 | R22: N | W22: 0 | X22: N | Y22: =Výpočty!D49 -> 810.7092463 | Z22: N
A23: Označení ložiska | C23: Rozmery | F23: Únosnost | H23: cena [kč] | I23: m [kg] | N23: Fe | O23: =0.56*O21+1.6*O22 -> 2574.133468 | P23: N | Q23: =Q21 -> 1977.684796 | R23: N | W23: =W21 -> 9645.120692 | X23: N | Y23: =1*Y21+0*Y22 -> 11039.89733 | Z23: N
C24: d | D24: D | E24: B | F24: C | G24: Co | N24: n | O24: =Vstupy!B7 -> 6000 | P24: min-1 | Q24: =O24 -> 6000 | R24: min-1 | W24: =Výpočty!J8 -> 1010.526316 | X24: min-1 | Y24: =W24 -> 1010.526316 | Z24: min-1
A25: NJ2304 | C25: 20 | D25: 52 | E25: 21 | F25: 47500 | G25: 38000 | H25: 943 | I25: 0.22 | N25: C* | O25: =O23*((20000*O24)/16667)^(1/3) -> 49705.63939 | Q25: =Q23*((20000*Q24)/16667)^(1/3) -> 38188.41895 | W25: =W23*((20000*W24)/16667)^(1/3) -> 102852.3919 | Y25: =Y23*((20000*Y24)/16667)^(1/3) -> 117725.8307
A26: NJ2305 | C26: 25 | D26: 62 | E26: 24 | F26: 64000 | G26: 55000 | H26: 933 | I26: 0.35 | M26: životnost | O26: =IF(O25<Q6,"vyhovuje","nevyhovuje") -> vyhovuje | Q26: =IF(Q25<Q7,"vyhovuje","nevyhovuje") -> vyhovuje | W26: =IF(W25<Q16,"vyhovuje","nevyhovuje") -> vyhovuje | Y26: =IF(Y25<Q17,"vyhovuje","nevyhovuje") -> vyhovuje
A27: NJ2306 | C27: 30 | D27: 72 | E27: 27 | F27: 83000 | G27: 75000 | H27: 1150 | I27: 0.54 | O27: =IF(((O6/2)+(O16/2)+8)<Výpočty!F13," ","kolize ložisek A a E") ->  | Q27: =IF(((O7/2)+(O17/2)+8)<Výpočty!F13," ","kolize ložisek B a F") ->  | W27: =IF(((O6/2)+(O16/2)+8)<Výpočty!F13," ","kolize ložisek A a E") ->  | Y27: =IF(((O7/2)+(O17/2)+8)<Výpočty!F13," ","kolize ložisek B a F") -> 
A28: NJ2307 | C28: 35 | D28: 80 | E28: 31 | F28: 106000 | G28: 98000 | H28: 1238 | I28: 0.73
A29: NJ2308 | C29: 40 | D29: 90 | E29: 33 | F29: 129000 | G29: 120000 | H29: 1759 | I29: 0.95 | L29: 2 - stupňová | N29: FR | O29: =SQRT('Výpočty 2'!B50*'Výpočty 2'!B50+'Výpočty 2'!B49*'Výpočty 2'!B49) -> 1528.795138 | P29: N | Q29: =SQRT('Výpočty 2'!B51*'Výpočty 2'!B51+'Výpočty 2'!B52*'Výpočty 2'!B52) -> 433.9217668 | R29: N | S29: =SQRT('Výpočty 2'!E50*'Výpočty 2'!E50+'Výpočty 2'!E51*'Výpočty 2'!E51) -> 5735.650402 | T29: N | U29: =SQRT('Výpočty 2'!E52*'Výpočty 2'!E52+'Výpočty 2'!E53*'Výpočty 2'!E53) -> 6505.924412 | V29: N | W29: =SQRT('Výpočty 2'!H49*'Výpočty 2'!H49+'Výpočty 2'!H50*'Výpočty 2'!H50) -> 3037.586948 | X29: N | Y29: =SQRT('Výpočty 2'!H51*'Výpočty 2'!H51+'Výpočty 2'!H52*'Výpočty 2'!H52) -> 6097.714883 | Z29: N
A30: NJ2309 | C30: 45 | D30: 100 | E30: 36 | F30: 160000 | G30: 153000 | H30: 1802 | I30: 1.33 | N30: FA | O30: ='Výpočty 2'!B48 -> 778.5923134 | P30: N | Q30: =0 -> 0 | R30: N | S30: ='Výpočty 2'!E49 -> 738.1183621 | T30: N | U30: =0 -> 0 | V30: N | W30: =0 -> 0 | X30: N | Y30: ='Výpočty 2'!H48 -> 1471.116053 | Z30: N
A31: NJ2310 | C31: 50 | D31: 110 | E31: 40 | F31: 186000 | G31: 186000 | H31: 2212 | I31: 1.77 | N31: Fe | O31: =0.56*O29+1.6*O30 -> 2101.872979 | P31: N | Q31: =Q29 -> 433.9217668 | R31: N | S31: =1*S29+0*S30 -> 5735.650402 | T31: N | U31: =U29 -> 6505.924412 | V31: N | W31: =W29 -> 3037.586948 | X31: N | Y31: =1*Y29+0*Y30 -> 6097.714883 | Z31: N
A32: NJ2311 | C32: 55 | D32: 120 | E32: 43 | F32: 232000 | G32: 232000 | H32: 3082 | I32: 2.54 | N32: n | O32: =Vstupy!B7 -> 6000 | P32: min-1 | Q32: =O32 -> 6000 | R32: min-1 | S32: =Q32/('Výpočty 2'!F6/'Výpočty 2'!F5) -> 2886.792453 | T32: min-1 | U32: =S32 -> 2886.792453 | V32: min-1 | W32: ='Výpočty 2'!K11 -> 986.6252687 | X32: min-1 | Y32: =W32 -> 986.6252687 | Z32: min-1
A33: NJ2312 | C33: 60 | D33: 130 | E33: 46 | F33: 260000 | G33: 265000 | H33: 3601 | I33: 2.8 | N33: C* | O33: =O31*((20000*O32)/16667)^(1/3) -> 40586.45041 | Q33: =Q31*((20000*Q32)/16667)^(1/3) -> 8378.881332 | S33: =S31*((20000*S32)/16667)^(1/3) -> 86785.14224 | U33: =U31*((20000*U32)/16667)^(1/3) -> 98440.02614 | W33: =W31*((20000*W32)/16667)^(1/3) -> 32134.40894 | Y33: =Y31*((20000*Y32)/16667)^(1/3) -> 64507.27732
A34: NJ2313 | C34: 65 | D34: 140 | E34: 48 | F34: 285000 | G34: 290000 | H34: 4087 | I34: 3.7 | M34: životnost | O34: =IF(O33<X6,"vyhovuje","nevyhovuje") -> vyhovuje | Q34: =IF(Q33<X7,"vyhovuje","nevyhovuje") -> vyhovuje | S34: =IF(S33<X11,"vyhovuje","nevyhovuje") -> nevyhovuje | U34: =IF(U33<X12,"vyhovuje","nevyhovuje") -> vyhovuje | W34: =IF(W33<X16,"vyhovuje","nevyhovuje") -> vyhovuje | Y34: =IF(Y33<X17,"vyhovuje","nevyhovuje") -> vyhovuje
A35: NJ2314 | C35: 70 | D35: 150 | E35: 51 | F35: 315000 | G35: 325000 | H35: 4903 | I35: 4 | O35: =IF(((V6/2)+(V11/2)+8)<'Výpočty 2'!G21," ","kolize ložisek A a C") ->  | Q35: =IF(((V7/2)+(V12/2)+8)<'Výpočty 2'!G21," ","kolize ložisek B a D") ->  | S35: =IF(((V6/2)+(V11/2)+8)<'Výpočty 2'!G21," ","kolize ložisek A a C") ->  | U35: =IF(((V7/2)+(V12/2)+8)<'Výpočty 2'!G21," ","kolize ložisek B a D") ->  | W35: =IF(((V11/2)+(V16/2)+8)<'Výpočty 2'!G22," ","kolize ložisek C aE") ->  | Y35: =IF(((V12/2)+(V17/2)+8)<'Výpočty 2'!G22," ","kolize ložisek D a F") -> 
A36: NJ2315 | C36: 75 | D36: 160 | E36: 55 | F36: 380000 | G36: 400000 | H36: 6045 | I36: 5
A37: NJ2316 | C37: 80 | D37: 170 | E37: 58 | F37: 415000 | G37: 440000 | H37: 7145 | I37: 6.95 | L37: 2 - stupňová koaxiálna | N37: FR | O37: =SQRT(' Výpočty 3'!B49*' Výpočty 3'!B49+' Výpočty 3'!B50*' Výpočty 3'!B50) -> 1254.126683 | P37: N | Q37: =SQRT(' Výpočty 3'!B51*' Výpočty 3'!B51+' Výpočty 3'!B52*' Výpočty 3'!B52) -> 748.7796341 | R37: N | S37: =SQRT(' Výpočty 3'!E50*' Výpočty 3'!E50+' Výpočty 3'!E51*' Výpočty 3'!E51) -> 5049.126057 | T37: N | U37: =SQRT(' Výpočty 3'!E53*' Výpočty 3'!E53+' Výpočty 3'!E52*' Výpočty 3'!E52) -> 8372.630401 | V37: N | W37: =SQRT(' Výpočty 3'!H49*' Výpočty 3'!H49+' Výpočty 3'!H50*' Výpočty 3'!H50) -> 4479.503348 | X37: N | Y37: =SQRT(' Výpočty 3'!H51*' Výpočty 3'!H51+' Výpočty 3'!H52*' Výpočty 3'!H52) -> 5866.304021 | Z37: N
A38: NJ2317 | C38: 85 | D38: 180 | E38: 60 | F38: 455000 | G38: 490000 | H38: 8325 | I38: 7.95 | N38: FA | O38: =' Výpočty 3'!B48 -> 778.5923134 | P38: N | Q38: =0 -> 0 | R38: N | S38: =' Výpočty 3'!E49 -> 925.7607157 | T38: N | U38: =0 -> 0 | V38: N | W38: =0 -> 0 | X38: N | Y38: =' Výpočty 3'!H48 -> 1655.005559 | Z38: N
A39: NJ2318 | C39: 90 | D39: 190 | E39: 64 | F39: 500000 | G39: 540000 | H39: 8912 | I39: 8.27 | N39: Fe | O39: =0.56*O37+1.6*O38 -> 1948.058644 | P39: N | Q39: =Q37 -> 748.7796341 | R39: N | S39: =1*S37+0*S38 -> 5049.126057 | T39: N | U39: =U37 -> 8372.630401 | V39: N | W39: =W37 -> 4479.503348 | X39: N | Y39: =1*Y37+0*Y38 -> 5866.304021 | Z39: N
N40: n | O40: =Vstupy!B7 -> 6000 | P40: min-1 | Q40: =O40 -> 6000 | R40: min-1 | S40: =O40/(' Výpočty 3'!F6/' Výpočty 3'!F5) -> 2886.792453 | T40: min-1 | U40: =S40 -> 2886.792453 | V40: min-1 | W40: =' Výpočty 3'!K11 -> 989.7574124 | X40: min-1 | Y40: =W40 -> 989.7574124 | Z40: min-1
A41: kuličkové ložisko SKF Typ 64 | N41: C* | O41: =O39*((20000*O40)/16667)^(1/3) -> 37616.34806 | Q41: =Q39*((20000*Q40)/16667)^(1/3) -> 14458.67937 | S41: =S39*((20000*S40)/16667)^(1/3) -> 76397.46015 | U41: =U39*((20000*U40)/16667)^(1/3) -> 126684.8342 | W41: =W39*((20000*W40)/16667)^(1/3) -> 47438.42991 | Y41: =Y39*((20000*Y40)/16667)^(1/3) -> 62124.80056
A42: Označení ložiska | C42: Rozmery | F42: Únosnost | H42: cena [kč] | I42: m [kg] | M42: životnost | O42: =IF(O41<AE6,"vyhovuje","nevyhovuje") -> vyhovuje | Q42: =IF(Q41<AE7,"vyhovuje","nevyhovuje") -> vyhovuje | S42: =IF(S41<AE11,"vyhovuje","nevyhovuje") -> nevyhovuje | U42: =IF(U41<AE12,"vyhovuje","nevyhovuje") -> vyhovuje | W42: =IF(W41<AE16,"vyhovuje","nevyhovuje") -> vyhovuje | Y42: =IF(Y41<AE17,"vyhovuje","nevyhovuje") -> vyhovuje
C43: d | D43: D | E43: B | F43: C | G43: Co | O43: =IF(((AC6/2)+(AC11/2)+8)<' Výpočty 3'!G21," ","kolize ložisek A a C") ->  | S43: =IF(((AC6/2)+(AC11/2)+8)<' Výpočty 3'!G21," ","kolize ložisek A a C") ->  | U43: =IF(((AC12/2)+(AC17/2)+8)<' Výpočty 3'!G22," ","kolize ložisek B a D") ->  | Y43: =IF(((AC12/2)+(AC17/2)+8)<' Výpočty 3'!G22," ","kolize ložisek B a D") -> 
A44: 6404 | C44: 20 | D44: 72 | E44: 19 | F44: 30700 | G44: 15000 | H44: 558 | I44: 0.41
A45: 6405 | C45: 25 | D45: 80 | E45: 21 | F45: 35800 | G45: 19300 | H45: 642 | I45: 0.54
A46: 6406 | C46: 30 | D46: 90 | E46: 23 | F46: 43600 | G46: 23600 | H46: 808 | I46: 0.75
A47: 6407 | C47: 35 | D47: 10 | E47: 25 | F47: 55300 | G47: 31000 | H47: 975 | I47: 0.97
A48: 6408 | C48: 40 | D48: 110 | E48: 27 | F48: 63700 | G48: 36500 | H48: 1207 | I48: 1.26
A49: 6409 | C49: 45 | D49: 120 | E49: 29 | F49: 76000 | G49: 45000 | H49: 1476 | I49: 1.57
A50: 6410 | C50: 50 | D50: 130 | E50: 31 | F50: 87100 | G50: 52000 | H50: 1733 | I50: 1.94
A51: 6411 | C51: 55 | D51: 140 | E51: 33 | F51: 103000 | G51: 62000 | H51: 2061 | I51: 2.4
A52: 6412 | C52: 60 | D52: 150 | E52: 35 | F52: 108000 | G52: 69500 | H52: 2486 | I52: 2.81
A53: 6413 | C53: 65 | D53: 160 | E53: 37 | F53: 119000 | G53: 78000 | H53: 3559 | I53: 3.42
A54: 6414 | C54: 70 | D54: 180 | E54: 42 | F54: 143000 | G54: 104000 | H54: 5058 | I54: 4.93
A55: 6415 | C55: 75 | D55: 190 | E55: 45 | F55: 153000 | G55: 114000 | H55: 7102 | I55: 5.81
A56: 6416 | C56: 80 | D56: 200 | E56: 48 | F56: 163000 | G56: 125000 | H56: 8499 | I56: 6.86
A57: 6417 | C57: 85 | D57: 210 | E57: 52 | F57: 174000 | G57: 137000 | H57: 9078 | I57: 8.05
A58: 6418 | C58: 90 | D58: 225 | E58: 54 | F58: 186000 | G58: 150000 | H58: 10120 | I58: 9.78
A60: Válečkové ložisko SKF NU2
A61: Označení ložiska | C61: Rozmery | F61: Únosnost | H61: cena [kč] | I61: m [kg]
C62: d | D62: D | E62: B | F62: C | G62: Co
A63: NU204 | C63: 20 | D63: 47 | E63: 14 | F63: 28500 | G63: 22000 | H63: 494 | I63: 0.15
A64: NU205 | C64: 25 | D64: 52 | E64: 15 | F64: 32500 | G64: 27000 | H64: 538 | I64: 0.24
A65: NU206 | C65: 30 | D65: 62 | E65: 16 | F65: 44000 | G65: 36500 | H65: 793 | I65: 0.36
A66: NU207 | C66: 35 | D66: 72 | E66: 17 | F66: 56000 | G66: 48000 | H66: 806 | I66: 0.48
A67: NU208 | C67: 40 | D67: 80 | E67: 18 | F67: 62000 | G67: 53000 | H67: 933 | I67: 0.66
A68: NU209 | C68: 45 | D68: 85 | E68: 19 | F68: 69500 | G68: 64000 | H68: 1069 | I68: 0.87
A69: NU210 | C69: 50 | D69: 90 | E69: 20 | F69: 73500 | G69: 69500 | H69: 1252 | I69: 1.15
A70: NU211 | C70: 55 | D70: 100 | E70: 21 | F70: 96500 | G70: 95000 | H70: 1471 | I70: 1.45
A71: NU212 | C71: 60 | D71: 110 | E71: 22 | F71: 108000 | G71: 102000 | H71: 1614 | I71: 1.85
A72: NU213 | C72: 65 | D72: 120 | E72: 23 | F72: 122000 | G72: 118000 | H72: 1691 | I72: 2.25
A73: NU214 | C73: 70 | D73: 125 | E73: 24 | F73: 137000 | G73: 137000 | H73: 1845 | I73: 2.75
A74: NU215 | C74: 75 | D74: 130 | E74: 25 | F74: 150000 | G74: 156000 | H74: 1955 | I74: 3.25
A75: NU216 | C75: 80 | D75: 140 | E75: 26 | F75: 160000 | G75: 166000 | H75: 2284 | I75: 3.9
A76: NU217 | C76: 85 | D76: 150 | E76: 28 | F76: 190000 | G76: 200000 | H76: 2581 | I76: 4.5
A77: NU218 | C77: 90 | D77: 160 | E77: 30 | F77: 210000 | G77: 220000 | H77: 3031 | I77: 5.4

Sheet Výstupy
A1: Výstupné hodnoty | B1: 1. stupňová převodovka | J1: Výstupné hodnoty | K1: 2. stupňová převodovka | T1: Výstupné hodnoty | U1: 2. koaxiální stupňová převodovka
A4: Upravené výstupné otáčky nuvyst | B4: =Výpočty!J8 -> 1010.526316 | C4: min -1 | D4: x= | E4: =Vstupy!D31 -> 513.6156728 | J4: Upravené výstupné otáčky nuvyst | K4: ='Výpočty 2'!K11 -> 986.6252687 | L4: min -1 | M4: x= | N4: =Vstupy!I31 -> 398.2526984 | T4: Upravené výstupné otáčky nuvyst | U4: =' Výpočty 3'!K11 -> 989.7574124 | V4: min -1 | W4: x= | X4: =Vstupy!N31 -> 294.5065109
A5: Krouticí moment na vstup. hřídeli Mk1 | B5: =Výpočty!E6 -> 143239.4488 | C5: N.mm | D5: y= | E5: =Vstupy!D32 -> 105 | J5: Krouticí moment na vstup. hřídeli Mk1 | K5: ='Výpočty 2'!E10 -> 143239.4488 | L5: N.mm | M5: y= | N5: =Vstupy!I32 -> 171.5 | T5: Krouticí moment na vstup. hřídeli Mk1 | U5: =' Výpočty 3'!E10 -> 143239.4488 | V5: N.mm | W5: y= | X5: =Vstupy!N32 -> 261
A6: Krouticí moment na výstup. hřídeli Mk2 | B6: =Výpočty!E7 -> 833474.5426 | C6: N.mm | J6: Krouticí moment na druhém hřídeli Mk2 | K6: ='Výpočty 2'!E11 -> 291759.0969 | L6: N.mm | T6: Krouticí moment na druhém hřídeli Mk2 | U6: =' Výpočty 3'!E11 -> 291759.0969 | V6: N.mm
J7: Krouticí moment na výstup. hřídeli Mk3 | K7: ='Výpočty 2'!E12 -> 836592.1955 | L7: N.mm | T7: Krouticí moment na výstup. hřídeli Mk3 | U7: =' Výpočty 3'!E12 -> 833944.7518 | V7: N.mm
A8: Hlavné Rozmery | B8: Pastorek | D8: Kolo | T8: Korigovaný modul prvního soukolí mk12 | U8: =' Výpočty 3'!E13 -> 1.5
A9: Šířka kola bw | B9: =Výpočty!D11 -> 29 | C9: mm | D9: =Výpočty!H11 -> 30 | E9: mm | T9: Korigovaný modul druhého soukolí mk34 | U9: =' Výpočty 3'!E14 -> 2.5
A10: Průměr roztečnej kružnice d | B10: =Výpočty!D12 -> 73.60852283 | C10: mm | D10: =Výpočty!F12 -> 437.0506043 | E10: mm | J10: Hlavné Rozmery | K10: Pastorek 1 | M10: Kolo 2 | O10: Pastorek 3 | Q10: Kolo 4 | T10: Hlavné Rozmery | U10: Pastorek 1 | W10: Kolo 2 | Y10: Pastorek 3 | AA10: Kolo 4
A11: hlavový průměr da | B11: =Výpočty!D20 -> 76.5216142 | C11: mm | D11: =Výpočty!F20 -> 440.0506043 | E11: mm | J11: Šířka kola bw | K11: ='Výpočty 2'!E16 -> 29 | L11: mm | M11: ='Výpočty 2'!G16 -> 30 | N11: mm | O11: ='Výpočty 2'!I16 -> 48 | P11: mm | Q11: ='Výpočty 2'!K16 -> 50 | R11: mm | T11: Šířka kola bw | U11: =' Výpočty 3'!E16 -> 29 | V11: mm | W11: =' Výpočty 3'!G16 -> 30 | X11: mm | Y11: =' Výpočty 3'!I16 -> 48 | Z11: mm | AA11: =' Výpočty 3'!K16 -> 50 | AB11: mm
A12: patní průměr df | B12: =Výpočty!D21 -> 69.7716142 | C12: mm | D12: =Výpočty!F21 -> 433.2136957 | E12: mm | J12: Průměr roztečnej kružnice d | K12: ='Výpočty 2'!E17 -> 78.20905551 | L12: mm | M12: ='Výpočty 2'!G17 -> 162.5521546 | N12: mm | O12: ='Výpočty 2'!I17 -> 68.5412963 | P12: mm | Q12: ='Výpočty 2'!K17 -> 200.5467558 | R12: mm | T12: Průměr roztečnej kružnice d | U12: =' Výpočty 3'!E17 -> 78.20905551 | V12: mm | W12: =' Výpočty 3'!G17 -> 162.5521546 | X12: mm | Y12: =' Výpočty 3'!I17 -> 60.92559671 | Z12: mm | AA12: =' Výpočty 3'!K17 -> 177.6996571 | AB12: mm
A13: Silové pomery | J13: hlavový průměr da | K13: ='Výpočty 2'!E18 -> 81.10937868 | L13: mm | M13: ='Výpočty 2'!G18 -> 165.5521546 | N13: mm | O13: ='Výpočty 2'!I18 -> 73.66358756 | P13: mm | Q13: ='Výpočty 2'!K18 -> 205.5467558 | R13: mm | T13: hlavový průměr da | U13: =' Výpočty 3'!E18 -> 81.10937868 | V13: mm | W13: =' Výpočty 3'!G18 -> 165.5521546 | X13: mm | Y13: =' Výpočty 3'!I18 -> 66.11148222 | Z13: mm | AA13: =' Výpočty 3'!K18 -> 182.6996571 | AB13: mm
A14: Vsupný hřídel | J14: patní průměr df | K14: ='Výpočty 2'!E19 -> 74.35937868 | L14: mm | M14: ='Výpočty 2'!G19 -> 158.8021546 | N14: mm | O14: ='Výpočty 2'!I19 -> 62.41358756 | P14: mm | Q14: ='Výpočty 2'!K19 -> 194.2967558 | R14: mm | T14: patní průměr df | U14: =' Výpočty 3'!E19 -> 74.35937868 | V14: mm | W14: =' Výpočty 3'!G19 -> 158.8021546 | X14: mm | Y14: =' Výpočty 3'!I20 -> 57.1475058 | Z14: mm | AA14: =' Výpočty 3'!K20 -> 166.6802253 | AB14: mm
D15: Mc -vstupný | F15: =Výpočty!$E$6 -> 143239.4488 | G15: N.mm | J15: Vsupný hřídel | T15: Vsupný hřídel
D16: Tečná síla Ft | F16: =Výpočty!$D$31 -> 3891.925643 | G16: N | M16: Mc -vstupný | O16: ='Výpočty 2'!E10 -> 143239.4488 | P16: N.mm | W16: Mc -vstupný | Y16: =' Výpočty 3'!E10 -> 143239.4488 | Z16: N.mm
D17: Axiální síla Fa | F17: =Výpočty!$D$32 -> 827.254333 | G17: N | M17: Tečná síla Ft | O17: ='Výpočty 2'!E37 -> 3662.988841 | P17: N | W17: Tečná síla Ft | Y17: =' Výpočty 3'!E37 -> 3662.988841 | Z17: N
D18: Radiální síla Fr | F18: =Výpočty!$D$33 -> 1448.191548 | G18: N | M18: Axiální síla Fa | O18: ='Výpočty 2'!E38 -> 778.5923134 | P18: N | W18: Axiální síla Fa | Y18: =' Výpočty 3'!E38 -> 778.5923134 | Z18: N
D19: FAX | F19: =Výpočty!$D$41 -> 827.254333 | G19: N | M19: Radiální síla Fr | O19: ='Výpočty 2'!E39 -> 1363.00381 | P19: N | W19: Radiální síla Fr | Y19: =' Výpočty 3'!E39 -> 1363.00381 | Z19: N
D20: FAY | F20: =Výpočty!$D$42 -> 1945.962822 | G20: N | M20: FAX | O20: ='Výpočty 2'!B48 -> 778.5923134 | P20: N | W20: FAX | Y20: =' Výpočty 3'!B48 -> 778.5923134 | Z20: N
D21: FAZ | F21: =Výpočty!$D$43 -> 1095.394368 | G21: N | M21: FAY | O21: ='Výpočty 2'!B49 -> 968.0698438 | P21: N | W21: FAY | Y21: =' Výpočty 3'!B49 -> 681.501905 | Z21: N
D22: FBZ | F22: =Výpočty!$D$44 -> -352.7971798 | G22: N | M22: FAZ | O22: ='Výpočty 2'!B50 -> 1183.239347 | P22: N | W22: FAZ | Y22: =' Výpočty 3'!B50 -> 1052.800499 | Z22: N
D23: FBY | F23: =Výpočty!$D$45 -> 1945.962822 | G23: N | M23: FBZ | O23: ='Výpočty 2'!B51 -> -179.7644627 | P23: N | W23: FBZ | Y23: =' Výpočty 3'!B51 -> -310.2033107 | Z23: N
A24: - | M24: FBY | O24: ='Výpočty 2'!B52 -> 394.9339661 | P24: N | W24: FBY | Y24: =' Výpočty 3'!B52 -> 681.501905 | Z24: N
C25: - | D25: Ma - výstupný | F25: =Výpočty!E7 -> 833474.5426 | G25: N.mm | J25: Předlohový hřídel | T25: Předlohový hřídel
C26: =Materiály!D14 -> 0 | D26: Tečná síla Ft | F26: =Výpočty!D31 -> 3891.925643 | G26: N | M26: Tečná síla Ft | O26: ='Výpočty 2'!$I$37 -> 8513.381351 | P26: N | W26: Tečná síla Ft | Y26: =' Výpočty 3'!I37 -> 9577.55402 | Z26: N
D27: Axiální síla Fa | F27: =Výpočty!D32 -> 827.254333 | G27: N | M27: Axiální síla Fa | O27: ='Výpočty 2'!$I$38 -> 1501.138829 | P27: N | W27: Axiální síla Fa | Y27: =' Výpočty 3'!I38 -> 1688.781183 | Z27: N
D28: Radiální síla Fr | F28: =Výpočty!D33 -> 1448.191548 | G28: N | M28: Radiální síla Fr | O28: ='Výpočty 2'!$I$39 -> 3146.418573 | P28: N | W28: Radiální síla Fr | Y28: =' Výpočty 3'!I39 -> 3539.720894 | Z28: N
D29: FBX | F29: =Výpočty!D49 -> 810.7092463 | G29: N | M29: FAX | O29: ='Výpočty 2'!E49 -> 738.1183621 | P29: N | W29: FAX | Y29: =' Výpočty 3'!E49 -> 925.7607157 | Z29: N
D30: FAY | F30: =Výpočty!D50 -> 1907.043565 | G30: N | M30: FAY | O30: ='Výpočty 2'!E50 -> 5648.105375 | P30: N | W30: FAY | Y30: =' Výpočty 3'!E50 -> 5046.385282 | Z30: N
D31: FAZ | F31: =Výpočty!D51 -> 9454.709832 | G31: N | M31: FAZ | O31: ='Výpočty 2'!E51 -> 998.294151 | P31: N | W31: FAZ | Y31: =' Výpočty 3'!E51 -> 166.3415882 | Z31: N
D32: FBZ | F32: =Výpočty!D52 -> 10873.93755 | G32: N | M32: FBZ | O32: ='Výpočty 2'!E52 -> -812.3806881 | P32: N | W32: FBZ | Y32: =' Výpočty 3'!E52 -> -2037.635572 | Z32: N
D33: FBY | F33: =Výpočty!D53 -> 1907.043565 | G33: N | M33: FBY | O33: ='Výpočty 2'!E53 -> 6455.00504 | P33: N | W33: FBY | Y33: =' Výpočty 3'!E53 -> 8120.897802 | Z33: N
A34: Počty dilů | B34: vnej. D | C34: vrtání | D34: l | F34: hmotnosť
A35: Vstupný hřídel | B35: =Výpočty!B60 -> 29 | C35: - | D35: =Výpočty!D60 -> 163 | E35: mm | F35: =Výpočty!G60 -> 0.845168181 | H35: kg
A36: Předlohový hřídel | B36: =Výpočty!B61 -> 53 | C36: - | D36: =Výpočty!D61 -> 221 | E36: mm | F36: =Výpočty!G61 -> 3.827397343 | H36: kg
A37: Pastorek 1 z = | B37: =Výpočty!C62 -> 48 | C37: b = | D37: =Výpočty!E62 -> 29 | E37: mm | F37: =Výpočty!G62 -> 0.8183871728 | H37: kg | J37: Výstupný hřídel | T37: Výstupný hřídel
A38: Kolo 2 z = | B38: =Výpočty!C63 -> 285 | C38: b = | D38: =Výpočty!E63 -> 30 | E38: mm | F38: =Výpočty!G63 -> 34.81049306 | H38: kg | M38: Ma - výstupný | O38: ='Výpočty 2'!E12 -> 836592.1955 | P38: N.mm | W38: Ma - výstupný | Y38: =' Výpočty 3'!E12 -> 833944.7518 | Z38: N.mm
A39: ložisko A | B39: ='Ložiská '!M6 -> NU406 | F39: ='Ložiská '!R6 -> 0.75 | H39: kg | M39: Tečná síla Ft | O39: ='Výpočty 2'!K37 -> 8343.113724 | P39: N | W39: Tečná síla Ft | Y39: =' Výpočty 3'!K37 -> 9386.002939 | Z39: N
A40: ložisko B | B40: ='Ložiská '!M7 -> 6406 | F40: ='Ložiská '!R7 -> 0.75 | H40: kg | M40: Axiální síla Fa | O40: ='Výpočty 2'!K38 -> 1471.116053 | P40: N | W40: Axiální síla Fa | Y40: =' Výpočty 3'!K38 -> 1655.005559 | Z40: N
A41: ložisko E | B41: ='Ložiská '!M16 -> 6411 | F41: ='Ložiská '!R16 -> 2.4 | H41: kg | M41: Radiální síla Fr | O41: ='Výpočty 2'!K39 -> 3083.490201 | P41: N | W41: Radiální síla Fr | Y41: =' Výpočty 3'!K39 -> 3468.926476 | Z41: N
A42: ložisko F | B42: ='Ložiská '!M17 -> NU411 | F42: ='Ložiská '!R17 -> 2.5 | H42: kg | M42: FBX | O42: ='Výpočty 2'!H48 -> 1471.116053 | P42: N | W42: FBX | Y42: =' Výpočty 3'!H48 -> 1655.005559 | Z42: N
M43: FAY | O43: ='Výpočty 2'!H49 -> 3036.539624 | P43: N | W43: FAY | Y43: =' Výpočty 3'!H49 -> 4471.633476 | Z43: N
A44: Bezpečnosti | M44: FAZ | O44: ='Výpočty 2'!H50 -> -79.75950143 | P44: N | W44: FAZ | Y44: =' Výpočty 3'!H50 -> -265.4134613 | Z44: N
A45: Součinitel bezpečnosti v dotyku SH | B45: =Výpočty!E83 -> 2.012929628 | M45: FBZ | O45: ='Výpočty 2'!H51 -> 3003.7307 | P45: N | W45: FBZ | Y45: =' Výpočty 3'!H51 -> 3203.513015 | Z45: N
A46: Součinitel Bezpečnosti v ohybe SF | B46: =Výpočty!M71 -> 1.787988874 | M46: FBY | O46: ='Výpočty 2'!H52 -> 5306.5741 | P46: N | W46: FBY | Y46: =' Výpočty 3'!H52 -> 4914.369464 | Z46: N
A47: Statická kontrola hřídelu 1 σred1 | B47: =Výpočty!C93 -> 70.99959969 | C47: N/mm2 | D47: =IF(B47>80,"Nutno zvětšit průměr hřídele 1"," ") ->  | J47: Počty dilů | K47: d | L47: vrtání | M47: l | O47: hmotnosť | T47: Počty dilů | U47: d | V47: vrtání | W47: l | Y47: hmotnosť
A48: Statická kontrola hřídelu 2 σred2 | B48: =Výpočty!H93 -> 64.89142579 | C48: N/mm2 | D48: =IF(B48>80,"Nutno zvětšit průměr hřídele 2"," ") ->  | J48: Vstupný hřídel | K48: ='Výpočty 2'!G41 -> 29 | M48: ='Výpočty 2'!B46+'Výpočty 2'!B47+2*'Výpočty 2'!G41+'Výpočty 2'!D56/2+'Výpočty 2'!D57/2 -> 222.5 | N48: mm | O48: =Vstupy!K34 -> 1.324788161 | T48: Vstupný hřídel | U48: =Výpočty!F35 -> 29 | W48: =Vstupy!P34 -> 0.8710935853 | X48: mm | Y48: =Vstupy!Q34 -> 5135.562144
J49: Předlohový hřídel | K49: ='Výpočty 2'!G42 -> 37 | M49: ='Výpočty 2'!E46+'Výpočty 2'!E47+'Výpočty 2'!E48+'Výpočty 2'!D58/2+'Výpočty 2'!D59/2 -> 171.5 | N49: mm | O49: =Vstupy!K35 -> 1.489730454 | T49: Předlohový hřídel | U49: =' Výpočty 3'!G42 -> 37 | W49: =Vstupy!P35 -> 2.24514618 | X49: mm | Y49: =Vstupy!Q35 -> 11223.56606
J50: Výstupný hřídel | K50: ='Výpočty 2'!G43 -> 53 | M50: ='Výpočty 2'!H46+'Výpočty 2'!H47+'Výpočty 2'!D60/2+'Výpočty 2'!D61/2+2*'Výpočty 2'!G43 -> 274.5 | N50: mm | O50: =Vstupy!K36 -> 4.753939233 | T50: Výstupný hřídel | U50: =' Výpočty 3'!G43 -> 53 | W50: =Vstupy!P36 -> 4.139131063 | X50: mm | Y50: =Vstupy!Q36 -> 7848.452338
J51: Pastorek 1 z = | K51: ='Výpočty 2'!F5 -> 51 | L51: šířka | M51: ='Výpočty 2'!E16 -> 29 | N51: mm | O51: =Vstupy!K37 -> 0.9432656848 | T51: Pastorek 1 z = | U51: =Vstupy!N37 -> 78.20905551 | V51: b = | W51: =Vstupy!P37 -> 0.9432656848 | X51: mm | Y51: =Vstupy!Q37 -> 4945.999082
J52: Kolo 2 z = | K52: ='Výpočty 2'!F6 -> 106 | L52: šířka | M52: ='Výpočty 2'!G16 -> 30 | N52: mm | O52: =Vstupy!K38 -> 4.634057135 | T52: Kolo 2 z = | U52: =Vstupy!N38 -> 162.5521546 | V52: b = | W52: =Vstupy!P38 -> 4.634057135 | X52: mm | Y52: =Vstupy!Q38 -> 9001.753369
J53: Pastorek 3 z = | K53: ='Výpočty 2'!F7 -> 27 | L53: šířka | M53: ='Výpočty 2'!I16 -> 48 | N53: mm | O53: =Vstupy!K39 -> 0.9851508532 | T53: Pastorek 3 z = | U53: =Vstupy!N39 -> 60.92559671 | V53: b = | W53: =Vstupy!P39 -> 0.6933615911 | X53: mm | Y53: =Vstupy!Q39 -> 5156.415259
J54: Kolo 4 z = | K54: ='Výpočty 2'!F8 -> 79 | L54: šířka | M54: ='Výpočty 2'!K16 -> 50 | N54: mm | O54: =Vstupy!K40 -> 11.53233542 | T54: Kolo 4 z = | U54: =Vstupy!N40 -> 177.6996571 | V54: b = | W54: =Vstupy!P40 -> 8.868328066 | X54: mm | Y54: =Vstupy!Q40 -> 10558.64795
J55: ložisko A | K55: ='Ložiská '!T6 -> NU406 | O55: ='Ložiská '!Y6 -> 0.75 | Q55: kg | T55: ložisko A | U55: ='Ložiská '!AA6 -> NU406 | Y55: ='Ložiská '!AF6 -> 0.75 | AA55: kg
J56: ložisko B | K56: ='Ložiská '!T7 -> 6406 | O56: ='Ložiská '!Y7 -> 0.75 | Q56: kg | T56: ložisko B | U56: ='Ložiská '!AA7 -> 6406 | Y56: ='Ložiská '!AF7 -> 0.75 | AA56: kg
J57: ložisko C | K57: ='Ložiská '!T11 -> 6408 | O57: ='Ložiská '!Y11 -> 1.26 | Q57: kg | T57: ložisko C | U57: ='Ložiská '!AA11 -> 6408 | Y57: ='Ložiská '!AF11 -> 1.26 | AA57: kg
J58: ložisko D | K58: ='Ložiská '!T12 -> NJ2308 | O58: ='Ložiská '!Y12 -> 0.95 | Q58: kg | T58: ložisko D | U58: ='Ložiská '!AA12 -> NJ2308 | Y58: ='Ložiská '!AF12 -> 0.95 | AA58: kg
J59: ložisko E | K59: ='Ložiská '!T16 -> NU211 | O59: ='Ložiská '!Y16 -> 1.45 | Q59: kg | T59: ložisko E | U59: ='Ložiská '!AA16 -> 6411 | Y59: ='Ložiská '!AF16 -> 2.4 | AA59: kg
J60: ložisko F | K60: ='Ložiská '!T17 -> 6411 | O60: ='Ložiská '!Y17 -> 2.4 | Q60: kg | T60: ložisko F | U60: ='Ložiská '!AA17 -> NU211 | Y60: ='Ložiská '!AF17 -> 1.45 | AA60: kg
J61: Bezpečnosti | K61: Soukolí 12 | M61: Soukolí 34 | T61: Bezpečnosti | U61: Soukolí 12 | W61: Soukolí 34
J62: Součinitel bezpečnosti v dotyku SH | K62: ='Výpočty 2'!E91 -> 2.047960525 | M62: ='Výpočty 2'!J91 -> 1.497002602 | T62: Součinitel bezpečnosti v dotyku SH | U62: =' Výpočty 3'!E91 -> 2.047960525 | W62: =' Výpočty 3'!J91 -> 1.316437167
J63: Součinitel Bezpečnosti v ohybe SF | K63: ='Výpočty 2'!N81 -> 2.503692896 | M63: ='Výpočty 2'!S81 -> 2.665523199 | T63: Součinitel Bezpečnosti v ohybe SF | U63: =' Výpočty 3'!N81 -> 2.696815213 | W63: =' Výpočty 3'!S81 -> 2.195009011
J64: Statická kontrola hřídelu 1 σred1 | K64: ='Výpočty 2'!C70 -> 65.30005477 | L64: N/mm2 | M64: =IF(K64>80,"Nutno zvětšit průměr hřídele 1"," ") ->  | T64: Statická kontrola hřídelu 1 σred1 | U64: =' Výpočty 3'!C70 -> 63.5607776 | V64: N/mm2 | W64: =IF(U64>80,"Nutno zvětšit průměr hřídele 1"," ") -> 
J65: Statická kontrola hřídelu 2 σred2 | K65: ='Výpočty 2'!H70 -> 88.9652777 | L65: N/mm2 | M65: =IF(K65>80,"Nutno zvětšit průměr hřídele 2"," ") -> Nutno zvětšit průměr hřídele 2 | T65: Statická kontrola hřídelu 2 σred2 | U65: =' Výpočty 3'!H70 -> 101.7369727 | V65: N/mm2 | W65: =IF(U65>80,"Nutno zvětšit průměr hřídele 2"," ") -> Nutno zvětšit průměr hřídele 2
J66: Statická kontrola hřídelu 3 σred3 | K66: ='Výpočty 2'!M70 -> 61.13792823 | L66: N/mm2 | M66: =IF(K66>80,"Nutno zvětšit průměr hřídele 3"," ") ->  | T66: Statická kontrola hřídelu 3 σred3 | U66: =' Výpočty 3'!M70 -> 60.5503007 | V66: N/mm2 | W66: =IF(U66>80,"Nutno zvětšit průměr hřídele 3"," ") -> 
M108: Reakce k ložiskám
M109: obrázok ložiská kola
M110: obrázok + zástavbové rozmery
M111: spoločné vstupné a výstupné listy pre obe prevodovky

Sheet Výpočty
A1: Návrh hlavných rozmerov
A2: Převodový pomer ip | E2: =Vstupy!B7/Vstupy!B6 -> 6 | G2: úhel záběru α | J2: 20 | K2: ° = | L2: =J2*PI()/180 -> 0.3490658504 | M2: rad | Y2: 15
A3: Počet zubů pastroku z1 | E3: =(2*Vstupy!B10*COS(Výpočty!L3))/(Výpočty!E9*(1+Výpočty!E2)) -> 47.51002632 | F3: =ROUND(E3,0) -> 48 | G3: úhel sklonu zubu β | J3: =Vstupy!B12 -> 12 | K3: ° = | L3: =J3*PI()/180 -> 0.2094395102 | M3: rad | X3: 6 | Y3: 16
A4: Počet zubů kola z2 | E4: =E3*E2 -> 285.0601579 | F4: =ROUND(E4,0) -> 285 | G4: poměrná šířka ozubení ψ | J4: =Vstupy!B14 -> 19 | X4: 8 | Y4: 17
A5: Upravený převodový pomer ipu | E5: =F4/F3 -> 5.9375 | G5: provozní součinitel KH | J5: =Vstupy!B16 -> 2 | X5: 10 | Y5: 18
A6: Krouticí moment na vstup. hřídeli Mk1 | E6: =(1000*Vstupy!B5*30000)/(PI()*Vstupy!B7) -> 143239.4488 | F6: N.mm | G6: účinnost n12 | J6: 0.98 | X6: 12 | Y6: 19
A7: Krouticí moment na výstup. hřídeli Mk2 | E7: =E6*E5*J6 -> 833474.5426 | F7: N.mm | G7: Hlavová vůle | J7: 1 | X7: 15 | Y7: 20
G8: Upravené výstupné otáčky nuvyst | J8: =Vstupy!B7/Výpočty!E5 -> 1010.526316 | K8: min -1 | Y8: 21
A9: Normálny modul mn | E9: =Vstupy!B8 -> 1.5 | G9: patní vůle | J9: 0.25 | Y9: 22
D10: Pastorek | F10: Kolo
A11: Šířka kola bw | C11: =J4*E9 -> 28.5 | D11: =ROUNDUP(C11,0) -> 29 | E11: mm | F11: =C11+E9 -> 30 | G11: mm = | H11: =ROUNDUP(F11,0) -> 30
A12: Průměr roztečnej kružnice d | D12: =E9*F3/COS(L3) -> 73.60852283 | E12: mm | F12: =E9*F4/COS(L3) -> 437.0506043 | G12: mm
A13: Osová vzdálenost a12 | D13: =(D12+F12)/2 -> 255.3295636 | E13: mm = | F13: =ROUND(D13,0) -> 255 | G13: mm
A14: Rozdíl osových vzdáleností | D14: =ABS(F13-D13) -> 0.3295635675 | E14: mm
A15: čelní úhel záběru at | D15: =ATAN(TAN(L2)/COS(L3)) -> 0.3562271415 | E15: rad = | F15: =D15*180/PI() -> 20.41031175 | G15: °
A16: valivý úhel záběru aW | D16: =ACOS((D13/F13)*COS(D15)) -> 0.3527375092 | E16: rad = | F16: =D16*180/PI() -> 20.21037056 | G16: °
A17: inv at | D17: =TAN(D15)-D15 -> 0.01587440435
A18: inv aw | D18: =TAN(D16)-D16 -> 0.01539636731
A19: korekce x1+x2 | C19: =((F3+F4)/2*TAN(L2))*(D18-D17) -> -0.02896954368 | D19: =C19 -> -0.02896954368 | E19: mm | F19: =0 -> 0 | G19: mm
A20: hlavový průměr da | D20: =D12+2*E9+2*D19*E9 -> 76.5216142 | E20: mm | F20: =F12+2*E9+2*F19*E9 -> 440.0506043 | G20: mm
A21: patní průměr df | D21: =D12-2*E9*(J7+J9)+2*E9*D19 -> 69.7716142 | E21: mm | F21: =F12-2*E9*(J7+J9)+2*E9*D19 -> 433.2136957 | G21: mm
A22: základní průmer db | D22: =D12*COS(D15) -> 68.98732385 | E22: mm | F22: =F12*COS(D15) -> 409.6122354 | G22: mm
A23: základní rozteč pbt | D23: =(PI()*E9*COS(D15))/COS(L3) -> 4.515209788 | E23: mm
A24: obvodová rychlost v | D24: =(PI()*Vstupy!B7*Výpočty!D12)/60000 -> 23.12479946 | E24: m/s
A25: výška zubu h | D25: =E9+1.25*E9 -> 3.375 | E25: mm
A26: součinitel záběru profilu εα | D26: =(0.5*SQRT(D20*D20-D22*D22)+0.5*SQRT(F20*F20-F22*F22)-D13*SIN(D16))/D23 -> 1.939207725
A27: součinitel záběru kroku εβ | D27: =D11*SIN(E29)/PI()/E9 -> 1.202324212
A28: součinitel záběru ε | D28: =D26+D27 -> 3.141531937
A29: úhel skolnu zub na zakl valci βb | E29: =ASIN(SIN(L3)*COS(L2)) -> 0.1966378483
A30: Silové pomery | D30: Pastorek | F30: Kolo
A31: Tečná síla Ft | D31: =2*E6/D12 -> 3891.925643 | E31: N | F31: =2*E7/F12 -> 3814.08713 | G31: N
A32: Axiální síla Fa | D32: =D31*TAN(L3) -> 827.254333 | E32: N | F32: =F31*TAN(L3) -> 810.7092463 | G32: N
A33: Radiální síla Fr | D33: =D31*(TAN(L2)/COS(L3)) -> 1448.191548 | E33: N | F33: =F31*(TAN(L2)/COS(L3)) -> 1419.227717 | G33: N
A34: Průměry hřídelů
A35: Průměr vstupního hřídele d1 | D35: =((16*E6)/(PI()*I35))^(1/3) -> 28.9714678 | E35: mm = | F35: =ROUNDUP(D35,0) -> 29 | G35: mm | I35: 30 | J35: N/mm2
A36: Průměr výstupního hřídele d2 | D36: =((16*E7)/(PI()*I36))^(1/3) -> 52.1091191 | E36: mm = | F36: =ROUNDUP(D36,0) -> 53 | G36: mm | I36: 30 | J36: N/mm2
A37: Reakčné síly
A38: Hřídel 1
A39: a1 | D39: =D55/2+15+D11/2 -> 41 | E39: mm
A40: a2 | D40: =D11/2+15+D56/2 -> 41 | E40: mm
A41: FAX | D41: =D32 -> 827.254333 | E41: N
A42: FAY | D42: =D31-D45 -> 1945.962822 | E42: N
A43: FAZ | D43: =D33+D44 -> 1095.394368 | E43: N
A44: FBZ | D44: =(-D33*D39+D32*D12/2)/(D39+D40) -> -352.7971798 | E44: N
A45: FBY | D45: =(D31*D39)/(D39+D40) -> 1945.962822 | E45: N
A46: Hřídel 2
A47: c1 | D47: =D39 -> 41 | E47: mm
A48: c2 | D48: =D40 -> 41 | E48: mm
A49: FBX | D49: =F32 -> 810.7092463 | E49: N
A50: FAY | D50: =F31-D53 -> 1907.043565 | E50: N
A51: FAZ | D51: =-F33+D52 -> 9454.709832 | E51: N
A52: FBZ | D52: =(F33*D47+F31*F12/2)/(D47+D48) -> 10873.93755 | E52: N
A53: FBY | D53: =F31*D47/(D47+D48) -> 1907.043565 | E53: N
D54: B
A55: Rozmery ložiska A | D55: ='Ložiská '!P6 -> 23
A56: Rozmery ložiska B | D56: ='Ložiská '!P7 -> 23
A57: Rozmery ložiska E | D57: ='Ložiská '!P16 -> 33
A58: Rozmery ložiska F | D58: ='Ložiská '!P17 -> 33
A59: počty dielov | G59: hmotnost(ocel)
A60: hřídel 1 ⌀ | B60: =F35 -> 29 | C60: x | D60: =D39+D40+D55/2+D56/2+2*Výpočty!F35 -> 163 | E60: mm | G60: =(PI()*(B60/2000)^2*(D60/1000)*7850)-(PI()*(Materiály!D11/2000)^2*(D60/1000)*7850) -> 0.845168181
A61: hřídel 2 ⌀ | B61: =F36 -> 53 | C61: x | D61: =D47+D48+D58/2+D57/2+2*F36 -> 221 | E61: mm | G61: =(PI()*(B61/2000)^2*(D61/1000)*7850) -> 3.827397343
A62: ozubené kolo 1 | C62: =F3 -> 48 | D62: zubov b= | E62: =D11 -> 29 | F62: mm | G62: =((((PI()*(D12/1000)^2)/4)*(D11/1000))-(((PI()*(F35/1000)^2)/4)*(D11/1000)))*7850 -> 0.8183871728 | M62: 740
A63: ozubené kolo 2 | C63: =F4 -> 285 | D63: zubov b= | E63: =H11 -> 30 | F63: mm | G63: =((((PI()*(F12/1000)^2)/4)*(H11/1000))-(((PI()*(F36/1000)^2)/4)*(H11/1000)))*7850 -> 34.81049306
A64: Bezpečnosť na dotyk | G64: =(PI()*(B64/2000)^2*(D64/1000)*7850) -> 0 | J64: Bezpečnosť na ohyb
G65: =(PI()*(B65/2000)^2*(D65/1000)*7850) -> 0 | J65: souč. sklonu zubu Yb | M65: =1-L3/(2*PI()/3) -> 0.9 | P65: Nh | Q65: =((D11/D25)^2)/(1+D11/D25+(D11/D25)^2) -> 0.8850157028
A66: součinitel tvaru ZH | E66: =SQRT((2*COS(L3))/(COS(D15)*COS(D15)*TAN(D16))) -> 2.459648834 | J66: souč.záběru profilu ea | M66: =(SQRT(D20*D20-D22*D22)+SQRT(F20*F20-F22*F22)-2*F13*SIN(D16))/(2*D23) -> 1.964423317
A67: součinitel pružnosti ZE | E67: 189.8 | F67: (MPa)1/2 | J67: souč. sklonu zubu Ye | M67: =0.25+(0.75/M66)*COS(E29)^2 -> 0.6172182127
A68: souč. vlivu záběru Ze | E68: =SQRT((2*D23)/(SQRT(D20*D20-D22*D22)+SQRT(F20*F20-F22*F22)-2*F13*SIN(D16))) -> 0.713481078 | J68: jmen. napětí v patě zubu sFO | M68: =D31/(D11*E9)*3*1.65*M65*M67 -> 246.015074
A69: souč. sklonu zubu Zb | E69: =SQRT(COS(L3)) -> 0.9890134482 | J69: napětí v ohybe v patě zubu sF | M69: =M68*1.5*1.394*E74*E77^Q65 -> 540.7401079 | S69: 1
A70: jmenovité napětí v dotyku σHo | E70: =E66*E67*E68*E69*SQRT((D31*(F4/F3))/((F4/F3)*D11*D12)) -> 444.8086139 | F70: Mpa | J70: trvalá pevnost sFlim | M70: 740 | N70: Mpa | S70: 1.25
A71: AA | B71: =50+56*(1-D71) -> 76.87882648 | C71: BB | D71: =0.25*(7-4)^(2/3) -> 0.5200209558 | J71: souč. Bezpečnosti v ohybe SF | M71: =M70/(M68*E73*1.1*1.1) -> 1.787988874 | S71: 1.5
A72: vmax | B72: =((B71+13-7)^(2))/200 -> 34.34449939 | S72: 1.75
A73: souč. vnitřních dyn. sil KV | E73: =((B71+SQRT(200*D24))/B71)^D71 -> 1.390336163 | S73: 2
A74: součinitel nerovn. KHa | E74: 1 | S74: 2.25
A75: stredná obvodová sila Fm | E75: =D31*E73*1.5 -> 8116.627448 | F75: N | S75: 2.5
A76: odchylka dotykovej krivky FBy | E76: =1.33*(0.023*D11/D12)^2*E75/D11+12.44 -> 12.47056502 | F76: N | S76: 2.75
A77: součinitel nerovn. KHb | E77: =1+(E76+20)/(2*E75/D11) -> 1.058007244 | S77: 3
A78: mez únavy v dotyku sHlim | E78: 1330 | F78: Mpa | S78: 3.5
A79: Zm | B79: 0.92 | S79: 4
A80: Zw | B80: 1 | S80: 4.5
A81: Zx | B81: 1 | S81: 5
A82: SHmin | B82: 1.3
A83: Součinitel bezpečnosti v dotyku SH | E83: =E78/SQRT(E70*E70*1.5*E73*E74*E77) -> 2.012929628
A86: Statická kontrola hřídelů
A87: Hřídel 1 | F87: Hřídel 2
A88: Moy | C88: =D42*D39 -> 79784.47569 | D88: Nmm | F88: Moy | H88: =D50*D47 -> 78188.78617 | I88: Nmm
A89: Moz | C89: =D43*D39 -> 44911.1691 | D89: Nmm | F89: Moz | H89: =D52*D48 -> 445831.4395 | I89: Nmm
A90: Mored | C90: =SQRT(C88*C88+C89*C89+E6*E6) -> 170000.3393 | D90: Nmm | F90: Mored | H90: =SQRT(H88*H88+H89*H89+E7*E7) -> 948450.8274 | I90: Nmm
A91: Wo dutý | C91: =((PI()*F35^3)/32)*(1-(L35/F35)^4) -> 2394.384476 | D91: mm3 | F91: Wo dutý | H91: =((PI()*F36^3)/32)*(1-(L36/F36)^4) -> 14615.9653 | I91: mm3
A92: Wo plný | C92: =(PI()*F35*F35*F35)/32 -> 2394.384476 | D92: mm3 | F92: Wo | H92: =(PI()*F36*F36*F36)/32 -> 14615.9653 | I92: mm3
A93: σred | C93: =C90/C92 -> 70.99959969 | D93: N/mm2 | F93: σred | H93: =H90/H92 -> 64.89142579 | I93: N/mm2

Sheet Výpočty 2
A1: Návrh hlavných rozmerov
A2: Převodový pomer ip | E2: =Vstupy!B7/Vstupy!B6 -> 6 | H2: úhel záběru α | K2: 20 | L2: ° = | M2: =(K2*PI())/180 -> 0.3490658504 | N2: rad
A3: Převodový pomer 1-2 ip12 | E3: =SQRT(E2/1.4) -> 2.070196678 | H3: úhel sklonu zubu β12 | K3: =Vstupy!B12 -> 12 | L3: ° = | M3: =(K3*PI())/180 -> 0.2094395102 | N3: rad
A4: Převodový pomer 3-4 ip34 | E4: =1.4*E3 -> 2.898275349 | H4: úhel sklonu zubu β34 | K4: =Vstupy!B13 -> 10 | L4: ° = | M4: =(K4*PI())/180 -> 0.1745329252 | N4: rad
A5: Počet zubů pastroku z1 | E5: =(Vstupy!B11*2*COS('Výpočty 2'!M3))/(Vstupy!B8*(1+'Výpočty 2'!E3)) -> 50.97511089 | F5: =ROUND(E5,0) -> 51 | H5: poměrná šířka ozubení ψ | K5: =Vstupy!B14 -> 19 | M5: =Vstupy!B15 -> 19
A6: Počet zubů kola z2 | E6: =E5*E3 -> 105.5285052 | F6: =ROUND(E6,0) -> 106 | H6: radiální vůle | K6: 0.25
A7: Počet zubů pastroku z3 | E7: =((Vstupy!B10-Vstupy!B11)*2*COS('Výpočty 2'!M4))/(Vstupy!B9*(1+'Výpočty 2'!E4)) -> 27.28366465 | F7: =ROUND(E7,0) -> 27 | H7: účinnost n | K7: 0.98
A8: Počet zubů kola z4 | E8: =E4*E7 -> 79.07557268 | F8: 79 | H8: Hlavová vůle | K8: 1 | M8: 1
A9: Upravený převodový pomer ipu | E9: =(F6/F5)*(F8/F7) -> 6.081336238 | G9: Upravený převodový pomer i12 | K9: =F6/F5 -> 2.078431373
A10: Krouticí moment na vstup. hřídeli Mk1 | E10: =(1000*Vstupy!B5*30000)/(PI()*Vstupy!B7) -> 143239.4488 | F10: N.mm | G10: Upravený převodový pomer i34 | K10: =F8/F7 -> 2.925925926
A11: Krouticí moment na 2. hřídeli Mk2 | E11: =E10*K9*K7 -> 291759.0969 | F11: N.mm | G11: Upravené výstupné otáčky nuvyst | K11: =Vstupy!B7/E9 -> 986.6252687
A12: Krouticí moment na výstup. hřídeli Mk3 | E12: =E11*K10*K7 -> 836592.1955 | F12: N.mm
A13: Normalizovaný modul mn12 | E13: =Vstupy!B8 -> 1.5 | F13: =(Vstupy!B11*2*COS('Výpočty 2'!M3))/('Výpočty 2'!F5+'Výpočty 2'!F6) -> 1.495257479
A14: Normalizovaný modul mn34 | E14: =Vstupy!B9 -> 2.5 | F14: =((Vstupy!B10-Vstupy!B11)*2*COS('Výpočty 2'!M4))/('Výpočty 2'!F7+'Výpočty 2'!F8) -> 2.508472578
E15: Pastorek 1 | G15: Kolo 2 | I15: Pastorek 3 | K15: Kolo 4
A16: Šířka kola bw | D16: =K5*E13 -> 28.5 | E16: =ROUNDUP(D16,0) -> 29 | F16: =D16+E13 -> 30 | G16: =ROUNDUP(F16,0) -> 30 | H16: =M5*E14 -> 47.5 | I16: =ROUNDUP(H16,0) -> 48 | J16: =H16+E14 -> 50 | K16: =ROUNDUP(J16,0) -> 50
A17: Průměr roztečnej kružnice d | E17: =E13*F5/COS(M3) -> 78.20905551 | F17: mm | G17: =E13*F6/COS(M3) -> 162.5521546 | H17: mm | I17: =E14*F7/COS(M4) -> 68.5412963 | J17: mm | K17: =E14*F8/COS(M4) -> 200.5467558 | L17: mm
A18: hlavový průměr da | E18: =E17+2*E13+2*E28*E13 -> 81.10937868 | F18: mm | G18: =G17+2*E13+2*G28*E13 -> 165.5521546 | H18: mm | I18: =I17+2*E14+2*I28*E14 -> 73.66358756 | J18: mm | K18: =K17+2*E14+2*K28*E14 -> 205.5467558 | L18: mm
A19: patní průměr df | E19: =E17-2*E13*(K8+K6)+2*E28*E13 -> 74.35937868 | F19: mm | G19: =G17-2*E13*(K8+K6)+2*G28*E13 -> 158.8021546 | H19: mm | I19: =I17-2*E14*(K8+K6)+2*I28*E14 -> 62.41358756 | J19: mm | K19: =K17-2*E14*(K8+K6)+2*K28*E14 -> 194.2967558 | L19: mm
A20: základní průmer db | E20: =E17*COS(E24) -> 73.29903159 | F20: mm | G20: =G17*COS(E24) -> 152.3470068 | H20: mm | I20: =I17*COS(I24) -> 64.29094403 | J20: mm | K20: =K17*COS(I24) -> 188.1105399 | L20: mm
A21: Osová vzdálenost a12 | E21: =(E17+G17)/2 -> 120.380605 | F21: mm | G21: =ROUND(E21,0) -> 120 | H21: mm
A22: Osová vzdálenost a34 | E22: =(I17+K17)/2 -> 134.5440261 | F22: mm | G22: =ROUNDUP(E22,0) -> 135 | H22: mm
A23: Rozdíl osových vzdáleností | E23: =ABS(G21-E21) -> 0.3806050454 | F23: mm | G23: =ABS(G22-E22) -> 0.4559739251 | H23: mm
A24: čelní úhel záběru at | E24: =ATAN(TAN(M2)/COS(M3)) -> 0.3562271415 | F24: rad | I24: =ATAN(TAN(M2)/COS(M4)) -> 0.3540148965 | J24: rad
A25: valivý úhel záběru aW | E25: =ACOS((E21/G21)*COS(E24)) -> 0.3476033307 | F25: rad | I25: =ACOS((E22/G22)*COS(I24)) -> 0.3630435936 | J25: rad
A26: inv at | E26: =TAN(E24)-E24 -> 0.01587440435 | I26: =TAN(I24)-I24 -> 0.0155701653
A27: inv aw | E27: =TAN(E25)-E25 -> 0.01471151755 | I27: =TAN(I25)-I25 -> 0.01683806138
A28: korekce x1+x2 | D28: =((F5+F6)/2*TAN(M2))*(E27-E26) -> -0.0332256102 | E28: =D28 -> -0.0332256102 | F28: mm | G28: 0 | H28: =((F7+F8)/2*TAN(M2))*(I27-I26) -> 0.02445825086 | I28: =H28 -> 0.02445825086 | J28: mm | K28: 0 | L28: mm
A29: základní rozteč pbt | E29: =(PI()*'Výpočty 2'!E13*COS('Výpočty 2'!E24))/COS('Výpočty 2'!M2) -> 4.699985424 | F29: mm | I29: =(PI()*E14*COS(I24))/COS('Výpočty 2'!M2) -> 7.839738088 | J29: mm
A30: úhel skolnu zub na zakl valci βb | E30: =ASIN(SIN(M3)*COS(M2)) -> 0.1966378483 | F30: rad | I30: =ASIN(SIN(M4)*COS(M2)) -> 0.1639088582 | J30: rad
A31: výška zubu h | E31: =E13+1.25*E13 -> 3.375 | F31: mm | I31: =E14+1.25*E14 -> 5.625
A32: součinitel záběru profilu εα | E32: =(0.5*SQRT(E18*E18-E20*E20)+0.5*SQRT(G18*G18-G20*G20)-E21*SIN(E25))/E29 -> 1.862165533 | I32: =(0.5*SQRT(I18*I18-I20*I20)+0.5*SQRT(K18*K18-K20*K20)-E22*SIN(I25))/I29 -> 1.482706899
A33: součinitel záběru kroku εβ | E33: =E16*SIN(E30)/PI()/E13 -> 1.202324212 | I33: =I16*SIN(I30)/PI()/E14 -> 0.9972577097
A34: součinitel záběru ε | E34: =E32+E33 -> 3.064489744 | I34: =I32+I33 -> 2.479964609
A35: obvodová rychlost v | E35: =(PI()*Vstupy!B7*'Výpočty 2'!E18)/60000 -> 25.48126282 | I35: =(PI()*Vstupy!B7*'Výpočty 2'!I17)/60000 -> 21.53288329
A36: Silové pomery | E36: Pastorek 1 | G36: Kolo 2 | I36: Pastorek 3 | K36: Kolo 4
A37: Tečná síla Ft | E37: =2*E10/E17 -> 3662.988841 | F37: N | G37: =2*E11/G17 -> 3589.729064 | H37: N | I37: =2*E11/I17 -> 8513.381351 | J37: N | K37: =2*E12/K17 -> 8343.113724 | L37: N
A38: Axiální síla Fa | E38: =E37*TAN(M3) -> 778.5923134 | F38: N | G38: =G37*TAN(M3) -> 763.0204671 | H38: N | I38: =I37*TAN(M4) -> 1501.138829 | J38: N | K38: =K37*TAN(M4) -> 1471.116053 | L38: N
A39: Radiální síla Fr | E39: =E37*TAN(M2)/COS(M3) -> 1363.00381 | F39: N | G39: =G37*TAN(M2)/COS(M3) -> 1335.743734 | H39: N | I39: =I37*TAN(M2)/COS(M4) -> 3146.418573 | J39: N | K39: =K37*TAN(M2)/COS(M4) -> 3083.490201 | L39: N
A40: Průměry hřídelů | I40: Tau d
A41: Průměr vstupního hřídele d1 | E41: =((16*E10)/(PI()*I41))^(1/3) -> 28.9714678 | F41: mm = | G41: =ROUNDUP(E41,0) -> 29 | H41: mm | I41: 30
A42: Průměr předlohového hřídele d2 | E42: =((16*E11)/(PI()*I42))^(1/3) -> 36.72465746 | F42: mm = | G42: =ROUNDUP(E42,0) -> 37 | H42: mm | I42: 30
A43: Průměr výstupního hřídele d3 | E43: =((16*E12)/(PI()*I43))^(1/3) -> 52.17401051 | F43: mm = | G43: 53 | H43: mm | I43: 30
A44: Reakčné síly
A45: Hřídel 1 | D45: Hřídel 2 | G45: Hřídel 3
A46: a1 | B46: =D56/2+15+E16/2 -> 41 | D46: b1 | E46: =B46 -> 41 | G46: c1 | H46: =E46+E47 -> 90
A47: a2 | B47: =E47+E48 -> 100.5 | D47: b2 | E47: =G16/2+I16/2+10 -> 49 | G47: c2 | H47: =D61/2+10+K16/2 -> 51.5
A48: FAX | B48: =E38 -> 778.5923134 | C48: N | D48: b3 | E48: =H47 -> 51.5 | G48: FBX | H48: =K38 -> 1471.116053 | I48: N
A49: FAY | B49: =E39-B52 -> 968.0698438 | C49: N | D49: FAX | E49: =I38-G38 -> 738.1183621 | F49: N | G49: FAY | H49: =K37-H52 -> 3036.539624 | I49: N
A50: FAZ | B50: =E39+B51 -> 1183.239347 | C50: N | D50: FAY | E50: =I37+G37-E53 -> 5648.105375 | F50: N | G50: FAZ | H50: =-K39+H51 -> -79.75950143 | I50: N
A51: FBZ | B51: =((-E39*B46)+(E38*(E17/2)))/(B46+B47) -> -179.7644627 | C51: N | D51: FAZ | E51: =-G39+I39+E52 -> 998.294151 | F51: N | G51: FBZ | H51: =(K39*H46+K38*K17/2)/(H46+H47) -> 3003.7307 | I51: N
A52: FBY | B52: =(E39*B46)/(B46+B47) -> 394.9339661 | C52: N | D52: FBZ | E52: =(-I39*(E46+E47)+G39*E46+I38*I17/2+G38*G17/2)/(E46+E47+E48) -> -812.3806881 | F52: N | G52: FBY | H52: =(K37*H46)/(H46+H47) -> 5306.5741 | I52: N
D53: FBY | E53: =(G37*E46+I37*(E46+E47))/(E46+E47+E48) -> 6455.00504 | F53: N
D55: B | F55: D
A56: Rozmery ložiska A | D56: ='Ložiská '!W6 -> 23
A57: Rozmery ložiska B | D57: ='Ložiská '!W7 -> 23
A58: Rozmery ložiska C | D58: ='Ložiská '!W11 -> 27
A59: Rozmery ložiska D | D59: ='Ložiská '!W12 -> 33
A60: Rozmery ložiska E | D60: ='Ložiská '!W16 -> 21
A61: Rozmery ložiska F | D61: ='Ložiská '!W17 -> 33
A63: Statická kontrola hřídelů
A64: Hřídel 1 | F64: Hřídel 2 | K64: Hřídel 3
A65: Moy | C65: =B49*B46 -> 39690.8636 | D65: Nmm | F65: Moy | H65: =E53*E48 -> 332432.7596 | I65: Nmm | K65: Moy | M65: =H49*H46 -> 273288.5662 | N65: Nmm
A66: Moz | C66: =B50*B46 -> 48512.81323 | D66: Nmm | F66: Moz | H66: =E52*E48+I38*I17/2 -> 9607.395207 | I66: Nmm | K66: Moz | M66: =H51*H47 -> 154692.131 | N66: Nmm
A67: Mored | C67: =SQRT(C65*C65+C66*C66+E10*E10) -> 156353.4374 | D67: Nmm | F67: Mored | H67: =SQRT(H65*H65+H66*H66+E11*E11) -> 442410.6828 | I67: Nmm | K67: Mored | M67: =SQRT(M65*M65+M66*M66+E12*E12) -> 893589.8373 | N67: Nmm
A68: Wo dutý | C68: =((PI()*G41^3)/32)*(1-(K41/G41)^4) -> 2394.384476 | D68: mm3 | F68: Wo dutý | H68: =((PI()*G42^3)/32)*(1-(K42/G42)^4) -> 4972.846646 | I68: mm3 | K68: Wo dutý | M68: =((PI()*G43^3)/32)*(1-(K43/G43)^4) -> 14615.9653 | N68: mm3
A69: Wo plný | C69: =(PI()*G41*G41*G41)/32 -> 2394.384476 | D69: mm3 | F69: Wo | H69: =(PI()*G42*G42*G42)/32 -> 4972.846646 | I69: mm3 | K69: Wo | M69: =(PI()*G43*G43*G43)/32 -> 14615.9653 | N69: mm3
A70: σred | C70: =C67/C69 -> 65.30005477 | D70: N/mm2 | F70: σred | H70: =H67/H69 -> 88.9652777 | I70: N/mm2 | K70: σred | M70: =M67/M69 -> 61.13792823 | N70: N/mm2
A72: Bezpečnosť na dotyk | K72: Bezpečnosť na ohyb
A73: 1. soukolí | F73: 2. soukolí | K73: 1.soukolí | P73: 2.soukolí
A74: součinitel tvaru ZH | E74: =SQRT((2*COS(E30))/(COS(E24)*COS(E24)*TAN(E25))) -> 2.48259138 | F74: součinitel tvaru ZH | J74: =SQRT((2*COS(I30))/(COS(I24)*COS(I24)*TAN(I25))) -> 2.429759235 | K74: souč. sklonu zubu Yb | N74: =1-M3/(2*PI()/3) -> 0.9 | P74: souč. sklonu zubu Yb | S74: =1-M4/(2*PI()/3) -> 0.9166666667
A75: součinitel pružnosti ZE | E75: 189.8 | F75: součinitel pružnosti ZE | J75: 189.8 | K75: souč.záběru profilu ea | N75: =(SQRT(E18*E18-E20*E20)+SQRT(G18*G18-G20*G20)-2*E21*SIN(E25))/(2*E29) -> 1.862165533 | P75: souč.záběru profilu ea | S75: =(SQRT(I18*I18-I20*I20)+SQRT(K18*K18-K20*K20)-2*E22*SIN(I25))/(2*I29) -> 1.482706899
A76: souč. vlivu záběru Ze | E76: =SQRT(1/E32) -> 0.7328091073 | F76: souč. vlivu záběru Ze | J76: =SQRT((2*I29)/(SQRT(I18*I18-I20*I20)+SQRT(K18*K18-K20*K20)-2*E22*SIN(I25))) -> 0.8212442575 | K76: souč. sklonu zubu Ye | N76: =1/N75 -> 0.5370091877 | P76: souč. sklonu zubu Ye | S76: =1/S75 -> 0.6744421305 | V76: ^
A77: souč. sklonu zubu Zb | E77: =SQRT(COS(M3)) -> 0.9890134482 | F77: souč. sklonu zubu Zb | J77: =SQRT(COS(M4)) -> 0.9923748047 | K77: jmen. napětí v patě zubu sFO | N77: =(E37/(E16*E13))*2.3*1.7*N74*N76 -> 159.1282628 | P77: jmen. napětí v patě zubu sFO | S77: =I37/(I16*E14)*2.3*1.65*S74*S76 -> 166.4518984
A78: jmenovité napětí v dotyku σHo | E78: =E74*E75*E76*E77*SQRT((E37*(F6/F5))/((F6/F5)*E16*E17)) -> 433.9950585 | F78: jmenovité napětí v dotyku σHo | J78: =J74*J75*J77*J76*SQRT((I37*(F8/F7))/((F8/F7)*I16*I17)) -> 604.5911603 | K78: Nh | N78: =((E16/E31)^2)/(1+(E16/E31)+(E16/E31)^2) -> 0.8850157028 | P78: Nh | S78: =((I16/I31)^2)/(1+(I16/I31)+(I16/I31)^2) -> 0.8842355227
A79: AA | B79: =50+56*(1-D79) -> 76.87882648 | C79: BB | D79: =0.25*(7-4)^(2/3) -> 0.5200209558 | F79: AA | G79: =50+56*(1-I79) -> 76.87882648 | H79: BB | I79: =0.25*(7-4)^(2/3) -> 0.5200209558 | K79: napětí v ohybe v patě zubu sF | N79: =N77*1.5*1.394*E82*E85^N78 -> 350.6062087 | P79: napětí v ohybe v patě zubu sF | S79: =S77*1.5*1.394*E82*E85^S78 -> 366.7254131
A80: vmax | B80: =((B79+13-7)^(2))/200 -> 34.34449939 | F80: vmax | G80: =((G79+13-7)^(2))/200 -> 34.34449939 | K80: trvalá pevnost sFlim | N80: 740 | P80: trvalá pevnost sFlim | S80: 740
A81: souč. vnitřních dyn. sil KV | E81: =((B79+SQRT(200*E35))/B79)^D79 -> 1.407114407 | F81: souč. vnitřních dyn. sil KV | J81: =((B79+SQRT(200*I35))/B79)^D79 -> 1.378399574 | K81: souč. Bezpečnosti v ohybe SF | N81: =N80/(N77*E81*1.2*1.1) -> 2.503692896 | P81: souč. Bezpečnosti v ohybe SF | S81: =S80/(S77*J81*1.1*1.1) -> 2.665523199
A82: součinitel nerovn. KHa | E82: 1 | F82: součinitel nerovn. KHa | J82: 1
A83: stredná obvodová sila Fm | E83: =E37*E81*1.5 -> 7731.366558 | F83: stredná obvodová sila Fm | J83: =I37*J81*1.5 -> 17602.26184
A84: odchylka dotykovej krivky FBy | E84: =1.33*(0.023*E16/E17)^2*E83/E16+12.44 -> 12.46578977 | F84: odchylka dotykovej krivky FBy | J84: =1.33*(0.023*I16/I17)^2*J83/I16+12.44 -> 12.5665355
A85: součinitel nerovn. KHb | E85: =1+(E84+20)/(2*E83/E16) -> 1.060888841 | F85: součinitel nerovn. KHb | J85: =1+(J84+20)/(2*J83/I16) -> 1.044403206
A86: mez únavy v dotyku sHlim | E86: 1330 | F86: mez únavy v dotyku sHlim | J86: 1330
A87: Zm | B87: 0.92 | F87: Zm | G87: 0.92
A88: Zw | B88: 1 | F88: Zw | G88: 1
A89: Zx | B89: 1 | F89: Zx | G89: 1
A90: SHmin | B90: 1.3 | F90: SHmin | G90: 1.3
A91: Součinitel bezpečnosti v dotyku SH | E91: =E86/SQRT(E78*E78*1.5*E81*E82*E85) -> 2.047960525 | F91: Součinitel bezpečnosti v dotyku SH | J91: =J86/SQRT(J78*J78*1.5*J81*J82*J85) -> 1.497002602

Sheet Výpočty 3
A1: Návrh hlavných rozmerov
A2: Převodový pomer ip | E2: =Vstupy!B7/Vstupy!B6 -> 6 | H2: úhel záběru α | K2: 20 | L2: ° = | M2: =(K2*PI())/180 -> 0.3490658504 | N2: rad
A3: Převodový pomer 1-2 ip12 | E3: =SQRT(E2/1.4) -> 2.070196678 | H3: úhel sklonu zubu β12 | K3: =Vstupy!B12 -> 12 | L3: ° = | M3: =(K3*PI())/180 -> 0.2094395102 | N3: rad
A4: Převodový pomer 3-4 ip34 | E4: =1.4*E3 -> 2.898275349 | H4: úhel sklonu zubu β34 | K4: =Vstupy!B13 -> 10 | L4: ° = | M4: =(K4*PI())/180 -> 0.1745329252 | N4: rad
A5: Počet zubů pastroku z1 | E5: =(Vstupy!B11*2*COS(' Výpočty 3'!M3))/(Vstupy!B8*(1+' Výpočty 3'!E3)) -> 50.97511089 | F5: =ROUND(E5,0) -> 51 | H5: poměrná šířka ozubení ψ | K5: =Vstupy!B14 -> 19 | M5: =Vstupy!B15 -> 19
A6: Počet zubů kola z2 | E6: =E5*E3 -> 105.5285052 | F6: =ROUND(E6,0) -> 106 | H6: radiální vůle | K6: 0.25
A7: Počet zubů pastroku z3 | E7: =(Vstupy!B11*2*COS(' Výpočty 3'!M4))/(Vstupy!B9*(1+' Výpočty 3'!E4)) -> 24.25214635 | F7: =ROUND(E7,0) -> 24 | H7: účinnost n | K7: 0.98
A8: Počet zubů kola z4 | E8: =E4*E7 -> 70.28939794 | F8: 70 | H8: Hlavová vůle | K8: 1 | M8: 1
A9: Upravený převodový pomer ipu | E9: =(F6/F5)*(F8/F7) -> 6.062091503 | G9: Upravený převodový pomer i12 | K9: =F6/F5 -> 2.078431373
A10: Krouticí moment na vstup. hřídeli Mk1 | E10: =(1000*Vstupy!B5*30000)/(PI()*Vstupy!B7) -> 143239.4488 | F10: N.mm | G10: Upravený převodový pomer i34 | K10: =F8/F7 -> 2.916666667
A11: Krouticí moment na 2. hřídeli Mk2 | E11: =E10*K9*K7 -> 291759.0969 | F11: N.mm | G11: Upravené výstupné otáčky nuvyst | K11: =Vstupy!B7/E9 -> 989.7574124
A12: Krouticí moment na výstup. hřídeli Mk3 | E12: =E11*K10*K7 -> 833944.7518 | F12: N.mm
A13: Upravený modul mn12 | E13: =Vstupy!B8 -> 1.5
A14: Upravený modul mn34 | E14: =Vstupy!B9 -> 2.5
E15: Pastorek 1 | G15: Kolo 2 | I15: Pastorek 3 | K15: Kolo 4
A16: Šířka kola bw | D16: =K5*E13 -> 28.5 | E16: =ROUNDUP(D16,0) -> 29 | F16: =D16+E13 -> 30 | G16: =ROUNDUP(F16,0) -> 30 | H16: =M5*E14 -> 47.5 | I16: =ROUNDUP(H16,0) -> 48 | J16: =H16+E14 -> 50 | K16: =ROUNDUP(J16,0) -> 50
A17: Průměr roztečnej kružnice d | E17: =E13*F5/COS(M3) -> 78.20905551 | F17: mm | G17: =E13*F6/COS(M3) -> 162.5521546 | H17: mm | I17: =E14*F7/COS(M4) -> 60.92559671 | J17: mm | K17: =E14*F8/COS(M4) -> 177.6996571 | L17: mm
A18: hlavový průměr da | E18: =E17+2*E13+2*E28*E13 -> 81.10937868 | F18: mm | G18: =G17+2*E13+2*G28*E13 -> 165.5521546 | H18: mm | I18: =I17+2*E14+2*I28*E14 -> 66.11148222 | J18: mm | K18: =K17+2*E14+2*K28*E14 -> 182.6996571 | L18: mm
A19: patní průměr df | E19: =E17-2*E13*(K8+K6)+2*E28*E13 -> 74.35937868 | F19: mm | G19: =G17-2*E13*(K8+K6)+2*G28*E13 -> 158.8021546 | H19: mm | I19: =I17-2*E14*(K8+K6)+2*I28*E14 -> 54.86148222 | J19: mm | K19: =K17-2*E14*(K8+K6)+2*K28*E14 -> 171.4496571 | L19: mm
A20: základní průmer db | E20: =E17*COS(E24) -> 73.29903159 | F20: mm | G20: =G17*COS(E24) -> 152.3470068 | H20: mm | I20: =I17*COS(I24) -> 57.1475058 | J20: mm | K20: =K17*COS(I24) -> 166.6802253 | L20: mm
A21: Osová vzdálenost a12 | E21: =(E17+G17)/2 -> 120.380605 | F21: mm | G21: =ROUND(E21,0) -> 120 | H21: mm | N21: =SIN(E25) -> 0.3406454591
A22: Osová vzdálenost a34 | E22: =(I17+K17)/2 -> 119.3126269 | F22: mm | G22: =ROUNDUP(E22,0) -> 120 | H22: mm
A23: Rozdíl osových vzdáleností | E23: =ABS(G21-E21) -> 0.3806050454 | F23: mm | G23: =ABS(G22-E22) -> 0.6873731034 | H23: mm
A24: čelní úhel záběru at | E24: =ATAN(TAN(M2)/COS(M3)) -> 0.3562271415 | F24: rad | I24: =ATAN(TAN(M2)/COS(M4)) -> 0.3540148965 | J24: rad | N24: =I25*180/PI() -> 21.15372779
A25: valivý úhel záběru aW | E25: =ACOS((E21/G21)*COS(E24)) -> 0.3476033307 | F25: rad | I25: =ACOS((E22/G22)*COS(I24)) -> 0.3692021989 | J25: rad
A26: inv at | E26: =TAN(E24)-E24 -> 0.01587440435 | I26: =TAN(I24)-I24 -> 0.0155701653
A27: inv aw | E27: =TAN(E25)-E25 -> 0.01471151755 | I27: =TAN(I25)-I25 -> 0.01774342592
A28: korekce x1+x2 | D28: =((F5+F6)/2*TAN(M2))*(E27-E26) -> -0.0332256102 | E28: =D28 -> -0.0332256102 | F28: mm | G28: 0 | H28: =((F7+F8)/2*TAN(M2))*(I27-I26) -> 0.03717710227 | I28: =H28 -> 0.03717710227 | J28: mm | K28: 0 | L28: mm
A29: základní rozteč pbt | E29: =(PI()*' Výpočty 3'!E13*COS(' Výpočty 3'!E24))/COS(' Výpočty 3'!M2) -> 4.699985424 | F29: mm | I29: =(PI()*E14*COS(I24))/COS(' Výpočty 3'!M2) -> 7.839738088 | J29: mm
A30: úhel skolnu zub na zakl valci βb | E30: =ASIN(SIN(M3)*COS(M2)) -> 0.1966378483 | F30: rad | I30: =ASIN(SIN(M4)*COS(M2)) -> 0.1639088582 | J30: rad
A31: výška zubu h | E31: =E13+1.25*E13 -> 3.375 | F31: mm | I31: =E14+1.25*E14 -> 5.625
A32: součinitel záběru profilu εα | E32: =(0.5*SQRT(E18*E18-E20*E20)+0.5*SQRT(G18*G18-G20*G20)-E21*SIN(E25))/E29 -> 1.862165533 | I32: =(0.5*SQRT(I18*I18-I20*I20)+0.5*SQRT(K18*K18-K20*K20)-E22*SIN(I25))/I29 -> 1.399221112
A33: součinitel záběru kroku εβ | E33: =E16*SIN(E30)/PI()/E13 -> 1.202324212 | I33: =I16*SIN(I30)/PI()/E14 -> 0.9972577097
A34: součinitel záběru ε | E34: =E32+E33 -> 3.064489744 | I34: =I32+I33 -> 2.396478821
A35: obvodová rychlost v | E35: =(PI()*Vstupy!B7*' Výpočty 3'!E18)/60000 -> 25.48126282 | I35: =(PI()*Vstupy!B7*' Výpočty 3'!I17)/60000 -> 19.1403407
A36: Silové pomery | E36: Pastorek 1 | G36: Kolo 2 | I36: Pastorek 3 | K36: Kolo 4
A37: Tečná síla Ft | E37: =2*E10/E17 -> 3662.988841 | F37: N | G37: =2*E11/G17 -> 3589.729064 | H37: N | I37: =2*E11/I17 -> 9577.55402 | J37: N | K37: =2*E12/K17 -> 9386.002939 | L37: N
A38: Axiální síla Fa | E38: =E37*TAN(M3) -> 778.5923134 | F38: N | G38: =G37*TAN(M3) -> 763.0204671 | H38: N | I38: =I37*TAN(M4) -> 1688.781183 | J38: N | K38: =K37*TAN(M4) -> 1655.005559 | L38: N
A39: Radiální síla Fr | E39: =E37*TAN(M2)/COS(M3) -> 1363.00381 | F39: N | G39: =G37*TAN(M2)/COS(M3) -> 1335.743734 | H39: N | I39: =I37*TAN(M2)/COS(M4) -> 3539.720894 | J39: N | K39: =K37*TAN(M2)/COS(M4) -> 3468.926476 | L39: N
A40: Průměry hřídelů | I40: Tau d
A41: Průměr vstupního hřídele d1 | E41: =((16*E10)/(PI()*I41))^(1/3) -> 28.9714678 | F41: mm = | G41: =ROUNDUP(E41,0) -> 29 | H41: mm | I41: 30
A42: Průměr předlohového hřídele d2 | E42: =((16*E11)/(PI()*I42))^(1/3) -> 36.72465746 | F42: mm = | G42: =ROUNDUP(E42,0) -> 37 | H42: mm | I42: 30
A43: Průměr výstupního hřídele d3 | E43: =((16*E12)/(PI()*I43))^(1/3) -> 52.11891648 | F43: mm = | G43: =ROUNDUP(E43,0) -> 53 | H43: mm | I43: 30
A44: Reakčné síly
A45: Hřídel 1 | D45: Hřídel 2 | G45: Hřídel 3
A46: a1 | B46: =D56/2+15+E16/2 -> 41 | D46: b1 | E46: =B46 -> 41 | G46: c1 | H46: =I16/2+15+D60/2 -> 55.5
A47: a2 | B47: =E16/2+15+D57/2 -> 41 | D47: b2 | E47: =B47+H46+D57/2+D60/2+15 -> 139.5 | G47: c2 | H47: =D61/2+15+K16/2 -> 50.5
A48: FAX | B48: =E38 -> 778.5923134 | C48: N | D48: b3 | E48: =H47 -> 50.5 | G48: FBX | H48: =K38 -> 1655.005559 | I48: N
A49: FAY | B49: =E39-B52 -> 681.501905 | C49: N | D49: FAX | E49: =I38-G38 -> 925.7607157 | F49: N | G49: FAY | H49: =K37-H52 -> 4471.633476 | I49: N
A50: FAZ | B50: =E39+B51 -> 1052.800499 | C50: N | D50: FAY | E50: =I37+G37-E53 -> 5046.385282 | F50: N | G50: FAZ | H50: =-K39+H51 -> -265.4134613 | I50: N
A51: FBZ | B51: =((-E39*B46)+(E38*(E17/2)))/(B46+B47) -> -310.2033107 | C51: N | D51: FAZ | E51: =-G39+I39+E52 -> 166.3415882 | F51: N | G51: FBZ | H51: =(K39*H46+K38*K17/2)/(H46+H47) -> 3203.513015 | I51: N
A52: FBY | B52: =(E39*B46)/(B46+B47) -> 681.501905 | C52: N | D52: FBZ | E52: =(-I39*(E46+E47)+G39*E46+I38*I17/2+G38*G17/2)/(E46+E47+E48) -> -2037.635572 | F52: N | G52: FBY | H52: =(K37*H46)/(H46+H47) -> 4914.369464 | I52: N
D53: FBY | E53: =(G37*E46+I37*(E46+E47))/(E46+E47+E48) -> 8120.897802 | F53: N
D55: B | F55: D
A56: Rozmery ložiska A | D56: ='Ložiská '!AD6 -> 23
A57: Rozmery ložiska B | D57: ='Ložiská '!AD7 -> 23
A58: Rozmery ložiska C | D58: ='Ložiská '!AD11 -> 27
A59: Rozmery ložiska D | D59: ='Ložiská '!AD12 -> 33
A60: Rozmery ložiska E | D60: ='Ložiská '!AD16 -> 33
A61: Rozmery ložiska F | D61: ='Ložiská '!AD17 -> 21
A63: Statická kontrola hřídelů
A64: Hřídel 1 | F64: Hřídel 2 | K64: Hřídel 3
A65: Moy | C65: =B49*B46 -> 27941.5781 | D65: Nmm | F65: Moy | H65: =E53*E48 -> 410105.339 | I65: Nmm | K65: Moy | M65: =H49*H46 -> 248175.6579 | N65: Nmm
A66: Moz | C66: =B50*B46 -> 43164.82047 | D66: Nmm | F66: Moz | H66: =E52*E48+I38*I17/2 -> -51455.59577 | I66: Nmm | K66: Moz | M66: =H51*H47 -> 161777.4073 | N66: Nmm
A67: Mored | C67: =SQRT(C65*C65+C66*C66+E10*E10) -> 152188.9392 | D67: Nmm | F67: Mored | H67: =SQRT(H65*H65+H66*H66+E11*E11) -> 505922.3636 | I67: Nmm | K67: Mored | M67: =SQRT(M65*M65+M66*M66+E12*E12) -> 885001.0937 | N67: Nmm
A68: Wo dutý | C68: =((PI()*G41^3)/32)*(1-(K41/G41)^4) -> 2394.384476 | D68: mm3 | F68: Wo dutý | H68: =((PI()*G42^3)/32)*(1-(K42/G42)^4) -> 4972.846646 | I68: mm3 | K68: Wo dutý | M68: =((PI()*G43^3)/32)*(1-(K43/G43)^4) -> 14615.9653 | N68: mm3
A69: Wo plný | C69: =(PI()*G41*G41*G41)/32 -> 2394.384476 | D69: mm3 | F69: Wo | H69: =(PI()*G42*G42*G42)/32 -> 4972.846646 | I69: mm3 | K69: Wo | M69: =(PI()*G43*G43*G43)/32 -> 14615.9653 | N69: mm3
A70: σred | C70: =C67/C69 -> 63.5607776 | D70: N/mm2 | F70: σred | H70: =H67/H69 -> 101.7369727 | I70: N/mm2 | K70: σred | M70: =M67/M69 -> 60.5503007 | N70: N/mm2
A72: Bezpečnosť na dotyk | K72: Bezpečnosť na ohyb
A73: 1. soukolí | F73: 2. soukolí | K73: 1.soukolí | P73: 2.soukolí
A74: součinitel tvaru ZH | E74: =SQRT((2*COS(E30))/(COS(E24)*COS(E24)*TAN(E25))) -> 2.48259138 | F74: součinitel tvaru ZH | J74: =SQRT((2*COS(I30))/(COS(I24)*COS(I24)*TAN(I25))) -> 2.40747858 | K74: souč. sklonu zubu Yb | N74: =1-M3/(2*PI()/3) -> 0.9 | P74: souč. sklonu zubu Yb | S74: =1-M4/(2*PI()/3) -> 0.9166666667
A75: součinitel pružnosti ZE | E75: 189.8 | F75: součinitel pružnosti ZE | J75: 189.8 | K75: souč.záběru profilu ea | N75: =E32 -> 1.862165533 | P75: souč.záběru profilu ea | S75: =(SQRT(I18*I18-I20*I20)+SQRT(K18*K18-K20*K20)-2*E22*SIN(I25))/(2*I29) -> 1.399221112
A76: souč. vlivu záběru Ze | E76: =SQRT(1/E32) -> 0.7328091073 | F76: souč. vlivu záběru Ze | J76: =SQRT(1/I32) -> 0.8453894531 | K76: souč. sklonu zubu Ye | N76: =1/N75 -> 0.5370091877 | P76: souč. sklonu zubu Ye | S76: =0.25+0.75/S75*(COS(I30)^2) -> 0.7717404243 | V76: ^
A77: souč. sklonu zubu Zb | E77: =SQRT(COS(M3)) -> 0.9890134482 | F77: souč. sklonu zubu Zb | J77: =SQRT(COS(M4)) -> 0.9923748047 | K77: jmen. napětí v patě zubu sFO | N77: =(E37/(E16*E13))*2.2*1.65*N74*N76 -> 147.7328885 | P77: jmen. napětí v patě zubu sFO | S77: =I37/(I16*E14)*2.2*1.65*S74*S76 -> 204.9569633
A78: jmenovité napětí v dotyku σHo | E78: =E74*E75*E76*E77*SQRT((E37*(F6/F5))/((F6/F5)*E16*E17)) -> 433.9950585 | F78: jmenovité napětí v dotyku σHo | J78: =J74*J75*J77*J76*SQRT((I37*(F8/F7))/((F8/F7)*I16*I17)) -> 693.7419959 | K78: Nh | N78: =((E16/E31)^2)/(1+(E16/E31)+(E16/E31)^2) -> 0.8850157028 | P78: Nh | S78: =((I16/I31)^2)/(1+(I16/I31)+(I16/I31)^2) -> 0.8842355227
A79: AA | B79: =50+56*(1-D79) -> 76.87882648 | C79: BB | D79: =0.25*(7-4)^(2/3) -> 0.5200209558 | F79: AA | G79: =50+56*(1-I79) -> 76.87882648 | H79: BB | I79: =0.25*(7-4)^(2/3) -> 0.5200209558 | K79: napětí v ohybe v patě zubu sF | N79: =N77*1.5*1.394*E82*E85^N78 -> 325.4988588 | P79: napětí v ohybe v patě zubu sF | S79: =S77*1.5*1.394*E82*E85^S78 -> 451.5594461
A80: vmax | B80: =((B79+13-7)^(2))/200 -> 34.34449939 | E80: 1330 | F80: vmax | G80: =((G79+13-7)^(2))/200 -> 34.34449939 | J80: 1330 | K80: trvalá pevnost sFlim | N80: 740 | P80: trvalá pevnost sFlim | S80: 740
A81: souč. vnitřních dyn. sil KV | E81: =((B79+SQRT(200*E35))/B79)^D79 -> 1.407114407 | F81: souč. vnitřních dyn. sil KV | J81: =((B79+SQRT(200*I35))/B79)^D79 -> 1.359400308 | K81: souč. Bezpečnosti v ohybe SF | N81: =N80/(N77*E81*1.2*1.1) -> 2.696815213 | P81: souč. Bezpečnosti v ohybe SF | S81: =S80/(S77*J81*1.1*1.1) -> 2.195009011
A82: součinitel nerovn. KHa | E82: 1 | F82: součinitel nerovn. KHa | J82: 1
A83: stredná obvodová sila Fm | E83: =E37*E81*1.5 -> 7731.366558 | F83: stredná obvodová sila Fm | J83: =I37*J81*1.5 -> 19529.59483
A84: odchylka dotykovej krivky FBy | E84: =1.33*(0.023*E16/E17)^2*E83/E16+12.44 -> 12.46578977 | F84: odchylka dotykovej krivky FBy | J84: =1.33*(0.023*I16/I17)^2*J83/I16+12.44 -> 12.6176815
A85: součinitel nerovn. KHb | E85: =1+(E84+20)/(2*E83/E16) -> 1.060888841 | F85: součinitel nerovn. KHb | J85: =1+(J84+20)/(2*J83/I16) -> 1.040084004
A86: mez únavy v dotyku sHlim | E86: 1330 | F86: mez únavy v dotyku sHlim | J86: 1330
A87: Zm | B87: 0.92 | F87: Zm | G87: 0.92
A88: Zw | B88: 1 | F88: Zw | G88: 1
A89: Zx | B89: 1 | F89: Zx | G89: 1
A90: SHmin | B90: 1.3 | F90: SHmin | G90: 1.3
A91: Součinitel bezpečnosti v dotyku SH | E91: =E86/SQRT(E78*E78*1.5*E81*E82*E85) -> 2.047960525 | F91: Součinitel bezpečnosti v dotyku SH | J91: =J86/SQRT(J78*J78*1.5*J81*J82*J85) -> 1.316437167
